Workbook

Sheet ДовидникКВК(месн)
A3: Код відомчої класифікації та кредитування | B3: Назва головного розпорядника коштів місцевого бюджету
A4: 01 | B4: Апарат (секретаріат) місцевої ради (Верховної Ради Автономної Республіки Крим, обласних, Київської та Севастопольської міських рад, районних рад і рад міст обла
A5: 02 | B5: Виконавчі органи місцевих рад, Рада міністрів Автономної Республіки Крим, державна адміністрація (обласні державні адміністрації, Київська, Севастопольська міс
A6: 03 | B6: Рахункова палата Верховної Ради Автономної Республіки Крим
A7: 04 | B7: Виборча комісія Автономної Республіки Крим
A8: 05 | B8: Постійне представництво Автономної Республіки Крим в столиці України - місті Києві
A9: 06 | B9: Орган з питань освіти і науки
A10: 07 | B10: Орган з питань охорони здоров'я
A11: 08 | B11: Орган з питань праці та соціального захисту населення
A12: 09 | B12: Орган у справах дітей
A13: 10 | B13: Орган з питань культури, національностей та релігій
A14: 11 | B14: Орган з питань молоді та спорту
A15: 12 | B15: Орган з питань житлово-комунального господарства
A16: 13 | B16: Орган з питань палива і енергетики
A17: 14 | B17: Орган з питань благоустрою населених пунктів
A18: 15 | B18: Орган з питань будівництва
A19: 16 | B19: Орган з питань містобудування та архітектури
A20: 17 | B20: Орган з питань державного архітектурно-будівельного контролю
A21: 18 | B21: Орган з питань охорони культурної спадщини
A22: 19 | B22: Орган з питань інфраструктури, розвитку та утримання мережі автомобільних доріг загального користування місцевого значення
A23: 20 | B23: Орган з питань інформатизації, аналітичного забезпечення та електронного урядування
A24: 21 | B24: Орган з питань пожежної охорони
A25: 22 | B25: Орган з питань охорони громадського порядку
A26: 23 | B26: Орган з питань інформаційної діяльності, засобів масової інформації та комунікацій з громадськістю
A27: 24 | B27: Орган з питань агропромислового комплексу, сільського господарства та продовольства
A28: 25 | B28: Орган з питань зовнішньоекономічної та міжнародної діяльності
A29: 26 | B29: Орган з питань туризму та курортів
A30: 27 | B30: Орган з питань економічного розвитку, торгівлі та інвестицій
A31: 28 | B31: Орган з питань екології, охорони навколишнього середовища та природних ресурсів
A32: 29 | B32: Орган з питань захисту населення і територій від надзвичайних ситуацій техногенного та природного характеру
A33: 30 | B33: Орган з питань мобілізаційної підготовки та цивільного захисту населення
A34: 31 | B34: Орган з питань управління комунальним майном
A35: 32 | B35: Орган з питань реклами та масових заходів
A36: 33 | B36: Орган з питань реєстрації та державного реєстру
A37: 34 | B37: Орган з питань надання адміністративних послуг
A38: 35 | B38: Орган з питань промисловості, розвитку інфраструктури та науково-технічної, інноваційної політики
A39: 36 | B39: Орган з питань земельних відносин
A40: 37 | B40: Орган з питань фінансів
A41: 38 | B41: Орган з питань внутрішнього фінансового контролю
A42: 40 | B42: Районні державні адміністрації у містах з районним поділом за відсутності районних у містах рад
A43: 41 | B43: Районні державні адміністрації у містах з районним поділом за відсутності районних у містах рад
A44: 42 | B44: Районні державні адміністрації у містах з районним поділом за відсутності районних у містах рад
A45: 43 | B45: Районні державні адміністрації у містах з районним поділом за відсутності районних у містах рад
A46: 44 | B46: Районні державні адміністрації у містах з районним поділом за відсутності районних у містах рад
A47: 45 | B47: Районні державні адміністрації у містах з районним поділом за відсутності районних у містах рад
A48: 46 | B48: Районні державні адміністрації у містах з районним поділом за відсутності районних у містах рад
A49: 47 | B49: Районні державні адміністрації у містах з районним поділом за відсутності районних у містах рад
A50: 48 | B50: Районні державні адміністрації у містах з районним поділом за відсутності районних у містах рад
A51: 49 | B51: Районні державні адміністрації у містах з районним поділом за відсутності районних у містах рад

Sheet ДовидникКПК (hidden)
B1: 110000 | C1: Апарат Верховної Ради України
B2: 111000 | C2: Апарат Верховної Ради України
B3: 111010 | C3: Здійснення законотворчої діяльності Верховної Ради України
B4: 111020 | C4: Обслуговування та організаційне. інформаційно-аналітичне. матеріально-технічне забезпечення діяльності Верховної Ради України
B5: 111030 | C5: Організація та здійснення офіційних прийомів Верховною Радою України
B6: 111040 | C6: Візити народних депутатів України за кордон
B7: 111050 | C7: Обслуговування діяльності Верховної Ради України
B8: 111060 | C8: Створення автоматизованої інформаційно-аналітичної системи органів законодавчої влади
B9: 111070 | C9: Фінансова підтримка санаторно-курортного комплексу Управління справами Верховної Ради України
B10: 111080 | C10: Висвітлення діяльності народних депутатів України через засоби телебачення і радіомовлення
B11: 111090 | C11: Висвітлення діяльності Верховної Ради України через засоби телебачення і радіомовлення та фінансова підтримка видання газети "Голос України"
B12: 111100 | C12: Капітальний ремонт житлового фонду Верховної Ради України
B13: 300000 | C13: Державне управління справами
B14: 301000 | C14: Апарат Державного управління справами
B15: 301010 | C15: Обслуговування та організаційне. інформаційно-аналітичне. матеріально-технічне забезпечення діяльності Президента України та Офісу Президента України
B16: 301020 | C16: Організаційне. інформаційно-аналітичне та матеріально-технічне забезпечення діяльності Президента України
B17: 301030 | C17: Обслуговування діяльності Президента України. Адміністрації Президента України та інших державних органів
B18: 301040 | C18: Візити Президента України за кордон
B19: 301050 | C19: Виготовлення державних нагород та пам'ятних знаків
B20: 301060 | C20: Фінансова підтримка санаторно-курортних закладів та закладів оздоровлення
B21: 301080 | C21: Наукова і науково-технічна діяльність у сфері державного управління. стратегічних проблем внутрішньої та зовнішньої політики і з питань посередництва та примирення при вирішенні колективних трудових спорів (конфліктів)
B22: 301090 | C22: Прикладні розробки у сфері державного управління
B23: 301110 | C23: Оздоровлення і відпочинок дітей в дитячих закладах оздоровлення
B24: 301130 | C24: Підготовка кадрів. підвищення кваліфікації керівних працівників. спеціалістів державного управління. підготовка науково-педагогічних і наукових кадрів з питань стратегічних проблем внутрішньої і зовнішньої політики
B25: 301140 | C25: Збереження природно-заповідного фонду в національних природних парках та заповідниках
B26: 301150 | C26: Прикладні дослідження і розробки у сфері профілактичної та клінічної медицини
B27: 301160 | C27: Створення автоматизованої системи інформаційно-аналітичного забезпечення Адміністрації Президента України
B28: 301170 | C28: Надання медичних послуг медичними закладами
B29: 301190 | C29: Поліклінічно-амбулаторне обслуговування. діагностика та лікування народних депутатів України та керівного складу органів державної влади
B30: 301200 | C30: Державний санітарно-епідеміологічний нагляд в лікувально-оздоровчих закладах Державного управління справами та на об'єктах органів державної влади
B31: 301230 | C31: Підвищення кваліфікації лікарів та середнього медичного персоналу в системі лікувально-оздоровчих закладів Державного управління справами
B32: 301240 | C32: Виплати на реалізацію положень Закону України "Про реструктуризацію заборгованості з виплат. передбачених статтею 57 Закону України "Про освіту" педагогічним. науково-педагогічним та іншим категоріям працівників навчальних закладів"
B33: 301260 | C33: Ведення лісового та мисливського господарства та забезпечення утримання резиденції
B34: 301270 | C34: Фінансова підтримка інформаційного бюлетеня "Офіційний вісник Президента України"
B35: 301280 | C35: Виконання загальнодержавних організаційних. інформаційно-аналітичних та науково-методологічних заходів з питань євроатлантичної інтеграції
B36: 301290 | C36: Ліквідація аварійного стану. реконструкція. реставрація. капітальний ремонт будівель. споруд і систем інженерного забезпечення з оновленням обладнання державного підприємства "Санаторій "Гурзуфський"
B37: 301330 | C37: Підготовка науково-педагогічних і наукових кадрів з питань стратегічних проблем внутрішньої і зовнішньої політики
B38: 301340 | C38: Заходи щодо зміцнення матеріально-технічної бази Національного палацу мистецтв "Україна"
B39: 301360 | C39: Фінансова підтримка Національного камерного ансамблю "Київські солісти". Національного культурно-мистецького та музейного комплексу "Мистецький арсенал"
B40: 301370 | C40: Надання науково-методичної та консультативної підтримки розвитку місцевого самоврядування
B41: 301380 | C41: Забезпечення перевезень вищих посадових осіб держави авіаційним транспортом
B42: 301390 | C42: Відновлення у державній власності будівель і споруд пансіонату "Гліцинія"
B43: 301410 | C43: Фінансова підтримка Національного комплексу "Експоцентр України"
B44: 301420 | C44: Заходи з обміну та вивчення досвіду у провідних клініках світу
B45: 301430 | C45: Створення Національного культурно-мистецького та музейного комплексу "Мистецький арсенал"
B46: 301440 | C46: Проведення міжнародного форуму "Європа _ Україна"
B47: 301450 | C47: Конкурсний відбір та присудження Національної премії України імені Тараса Шевченка
B48: 301460 | C48: Виплата Державних премій України
B49: 301470 | C49: Проведення Всеукраїнського фестивалю патріотичної пісні "Будь вільним!"
B50: 301480 | C50: Реалізація державного інвестиційного проекту "Відновлення матеріально-технічної бази та об'єктів інфраструктури ДП України "Міжнародний дитячий центр "Артек" (розширення та реконструкція приміщень харчоблоку)"
B51: 301490 | C51: Реалізація державного інвестиційного проекту "Удосконалення методів функціональної діагностики шляхом модернізації технологічного обладнання для підвищення якості надання медичної допомоги"
B52: 301500 | C52: Реалізація державного інвестиційного проекту "Реконструкція будівлі Державного підприємства "Національний центр ділового та культурного співробітництва "Український дім" на вул. Хрещатик. 2. в м. Києві"
B53: 301800 | C53: Капітальний ремонт житлового фонду
B54: 301810 | C54: Будівництво. капітальний ремонт. реконструкція. реставрація та придбання обладнання
B55: 301820 | C55: Реконструкція корпусу № 1 Державного підприємства "Санаторій "Кришталевий палац"
B56: 301830 | C56: Виконання невідкладних заходів у Маріїнському палаці
B57: 301840
B58: 301850 | C58: Реалізація державного інвестиційного проекту "Удосконалення профілактики. діагностики. хірургічного лікування офтальмологічної патології у дорослого населення на основі впровадження інноваційних технологій"
B59: 301860 | C59: Реставрація та пристосування Маріїнського палацу в м. Києві
B60: 301870 | C60: Аварійно-відновлювальні роботи з ліквідації аварійного стану житлового будинку по вул. Срібнокільській. 20 у м. Києві
B61: 301880 | C61: Капітальний ремонт будівель Державного підприємства "Санаторій "Південний"
B62: 301890 | C62: Будівництво Реабілітаційного центру на базі Державного підприємства "Санаторій "Конча-Заспа"
B63: 303000 | C63: Представництво Президента України в Автономній Республіці Крим
B64: 303010 | C64: Здійснення повноважень постійним представником Президента України в Автономній Республіці Крим
B65: 304000 | C65: Національна служба посередництва і примирення України
B66: 304010 | C66: Сприяння врегулюванню колективних трудових спорів (конфліктів)
B67: 304020 | C67: Прикладні розробки з питань посередництва і примирення при вирішенні колективних трудових спорів (конфліктів)
B68: 410000 | C68: Господарсько-фінансовий департамент Секретаріату Кабінету Міністрів України
B69: 411000 | C69: Секретаріат Кабінету Міністрів України
B70: 411010 | C70: Обслуговування та організаційне. інформаційно-аналітичне та матеріально-технічне забезпечення діяльності Кабінету Міністрів України
B71: 411020 | C71: Організація та здійснення офіційних прийомів керівництвом Кабінету Міністрів України
B72: 411030 | C72: Обслуговування діяльності Кабінету Міністрів України
B73: 411040 | C73: Створення спеціальної інформаційно-телекомунікаційної системи органів виконавчої влади. розвиток та інтеграція інформаційних ресурсів і технологій органів державної влади
B74: 411050 | C74: Візити урядових делегацій та відрядження працівників органів державної влади за кордон за рішенням Кабінету Міністрів України
B75: 411060 | C75: Перепідготовка та підвищення кваліфікації працівників Секретаріату Кабінету Міністрів України
B76: 411070 | C76: Фінансова підтримка газети "Урядовий кур'єр"
B77: 411110 | C77: Організаційне забезпечення підготовки та проведення в Україні фінальної частини чемпіонату Європи 2012 року з футболу
B78: 411120 | C78: Забезпечення функціонування та розвитку системи спеціальної інформації
B79: 411130 | C79: Ўнформаційно-аналітичне та організаційне забезпечення оперативного реагування органів виконавчої влади
B80: 411140 | C80: Підтримка реалізації комплексної реформи державного управління
B81: 411150 | C81: Забезпечення розслідування авіаційних подій та інцидентів з цивільними повітряними суднами Національним бюро
B82: 411160 | C82: Забезпечення функціонування Фонду розвитку інновацій
B83: 411170 | C83: Забезпечення функціонування офісу із залучення та підтримки інвестицій
B84: 411190 | C84: Заходи з підтримки розвитку лідерства в Україні
B85: 411200 | C85: Організаційне. матеріально-технічне. інформаційне та інше забезпечення діяльності Національної ради України з питань розвитку науки і технологій
B86: 411220 | C86: Фонд президента України з підтримки освіти. науки та спорту
B87: 412000 | C87: Державна служба з питань Автономної Республіки Крим та міста Севастополя
B88: 412010 | C88: Керівництво та управління з питань Автономної Республіки Крим та міста Севастополя
B89: 414000 | C89: Державна служба статистики України
B90: 414010 | C90: Керівництво та управління у сфері статистики
B91: 414020 | C91: Статистичні спостереження
B92: 414030 | C92: Щоквартальна плата домогосподарствам за ведення записів доходів. витрат та інших відомостей під час проведення обстеження умов їх життя
B93: 414040 | C93: Наукова і науково-технічна діяльність у сфері державної статистики
B94: 414090 | C94: Підготовка кадрів у сфері статистики закладом вищої освіти та забезпечення діяльності його баз практики
B95: 416000 | C95: Державне агентство з питань електронного урядування України
B96: 417000 | C96: Державна аудиторська служба України
B97: 420000 | C97: Господарсько-фінансовий департамент Секретаріату Кабінету Міністрів України (загальнодержавні видатки та кредитування)
B98: 421000 | C98: Секретаріат Кабінету Міністрів України (загальнодержавні видатки та кредитування)
B99: 421010 | C99: Заходи щодо оптимізації системи центральних органів виконавчої влади та скорочення кількості контролюючих органів
B100: 421020 | C100: Здійснення державного контролю за додержанням законодавства про захист прав споживачів
B101: 421040 | C101: Протиепізоотичні заходи та участь у Міжнародному епізоотичному бюро
B102: 421050 | C102: Організація і регулювання діяльності установ ветеринарної та фітосанітарної служби
B103: 421060 | C103: Підтримка реалізації комплексної реформи державного управління
B104: 426000 | C104: Державне агентство з питань електронного урядування України (загальнодержавні видатки та кредитування)
B105: 500000 | C105: Державна судова адміністрація України
B106: 501000 | C106: Апарат Державної судової адміністрації України
B107: 501010 | C107: Організаційне забезпечення діяльності судів та установ судової системи
B108: 501020 | C108: Забезпечення здійснення правосуддя місцевими. апеляційними судами та функціонування органів і установ системи правосуддя
B109: 501030 | C109: Здійснення правосуддя апеляційними загальними судами
B110: 501040 | C110: Здійснення правосуддя місцевими загальними судами
B111: 501050 | C111: Здійснення правосуддя військовими судами
B112: 501080 | C112: Здійснення правосуддя апеляційними господарськими судами
B113: 501100 | C113: Забезпечення діяльності Вищої кваліфікаційної комісії суддів України
B114: 501110 | C114: Організація спеціальної підготовки кандидатів на посаду судді. підготовка суддів та працівників апарату судів Національною школою суддів України
B115: 501150 | C115: Виконання рішень судів на користь суддів та працівників апаратів судів
B116: 501160 | C116: Здійснення правосуддя апеляційними адміністративними судами
B117: 501170 | C117: Здійснення правосуддя місцевими адміністративними судами
B118: 501180 | C118: Придбання (будівництво) житла для суддів Апеляційного суду України. апеляційних і місцевих судів
B119: 501190 | C119: Створення автоматизованої системи документообігу у судах та забезпечення її функціонування
B120: 501200 | C120: Проведення санації будівель бюджетних установ Державної судової адміністрації. у тому числі розроблення проектно-кошторисної документації
B121: 501210 | C121: Забезпечення ведення Єдиного державного реєстру судових рішень. створення та забезпечення функціонування єдиної бази даних електронних адрес. номерів факсів (телефаксів) суб'єктів владних повноважень
B122: 501600 | C122: Підтримка судової реформи
B123: 501820 | C123: Забезпечення судів належними приміщеннями та суддів службовим житлом
B124: 501840 | C124: Реконструкція з добудовою приміщення Шацького районного суду Волинської області
B125: 550000 | C125: Верховний Суд
B126: 551000 | C126: Апарат Верховного Суду
B127: 551010 | C127: Здійснення правосуддя Верховним Судом
B128: 600000 | C128: Верховний Суд України
B129: 601000 | C129: Апарат Верховного Суду України
B130: 601010 | C130: Здійснення правосуддя Верховним Судом України
B131: 601020 | C131: Підвищення кваліфікації суддів та працівників апарату Верховного Суду України
B132: 650000 | C132: Вищий спеціалізований суд України з розгляду цивільних і кримінальних справ
B133: 651000 | C133: Апарат Вищого спеціалізованого суду України з розгляду цивільних і кримінальних справ
B134: 651010 | C134: Здійснення правосуддя Вищим спеціалізованим судом України з розгляду цивільних і кримінальних справ
B135: 700000 | C135: Вищий господарський суд України
B136: 701000 | C136: Вищий господарський суд України
B137: 701010 | C137: Здійснення правосуддя Вищим господарським судом України
B138: 750000 | C138: Вищий адміністративний суд України
B139: 751000 | C139: Апарат Вищого адміністративного суду України
B140: 751010 | C140: Здійснення правосуддя Вищим адміністративним судом України
B141: 800000 | C141: Конституційний Суд України
B142: 801000 | C142: Конституційний Суд України
B143: 801010 | C143: Забезпечення конституційної юрисдикції в Україні
B144: 850000 | C144: Вищий антикорупційний суд
B145: 851000 | C145: Апарат Вищого антикорупційного суду
B146: 851010 | C146: Здійснення правосуддя Вищим антикорупційним судом
B147: 851020 | C147: Здійснення правосуддя Апеляційною палатою Вищого антикорупційного суду
B148: 900000 | C148: Офіс Генерального прокурора
B149: 901000 | C149: Офіс Генерального прокурора
B150: 901010 | C150: Здійснення прокурорсько-слідчої діяльності. підготовка та підвищення кваліфікації кадрів прокуратури
B151: 901020 | C151: Підготовка кадрів та підвищення кваліфікації прокурорсько-слідчих кадрів Національною академією прокуратури України
B152: 901030 | C152: Забезпечення функцій Спеціалізованою антикорупційною прокуратурою
B153: 901040 | C153: Забезпечення діяльності Кваліфікаційно-дисциплінарної комісії прокурорів
B154: 901050 | C154: Будівництво (придбання) житла для прокурорів органів прокуратури
B155: 950000 | C155: Вищий суд з питань інтелектуальної власності
B156: 951000 | C156: Апарат Вищого суду з питань інтелектуальної власності
B157: 951010 | C157: Здійснення правосуддя Вищим судом з питань інтелектуальної власності
B158: 951020 | C158: Здійснення правосуддя Апеляційною палатою Вищого суду з питань інтелектуальної власності
B159: 1000000 | C159: Міністерство внутрішніх справ України
B160: 1001000 | C160: Апарат Міністерства внутрішніх справ України
B161: 1001010 | C161: Керівництво та управління діяльністю Міністерства внутрішніх справ України
B162: 1001020 | C162: Створення та функціонування Державної інформаційної системи реєстраційного обліку фізичних осіб та їх документування
B163: 1001030 | C163: Створення та впровадження Національної автоматизованої інформаційної системи Департаменту державної автомобільної інспекції України
B164: 1001040 | C164: Участь органів внутрішніх справ у боротьбі з нелегальною міграцією. створення та утримання пунктів розміщення незаконних мігрантів
B165: 1001050 | C165: Реалізація державної політики у сфері внутрішніх справ. забезпечення діяльності органів. установ та закладів Міністерства внутрішніх справ України
B166: 1001060 | C166: Створення та впровадження єдиної системи цифрового зв'язку органів та підрозділів внутрішніх справ
B167: 1001070 | C167: Участь органів внутрішніх справ у міжнародних миротворчих операціях
B168: 1001080 | C168: Підготовка кадрів закладами вищої освіти із специфічними умовами навчання
B169: 1001090 | C169: Заходи. пов'язані із забезпеченням правопорядку під час проведення Євро-2012
B170: 1001100 | C170: Медичне забезпечення працівників Міністерства внутрішніх справ України. поліцейських та працівників Національної поліції України
B171: 1001110 | C171: Закупівля і модернізація озброєння. військової та спеціальної техніки за державним оборонним замовленням Міністерства внутрішніх справ
B172: 1001130 | C172: Дошкільна освіта та заходи з позашкільної роботи з дітьми працівників Міністерства внутрішніх справ України
B173: 1001160 | C173: Забезпечення заходів спеціальними підрозділами по боротьбі з організованою злочинністю Міністерства внутрішніх справ України
B174: 1001170 | C174: Наукове та інформаційно-аналітичне забезпечення заходів по боротьбі з організованою злочинністю і корупцією
B175: 1001180 | C175: Забезпечення особистої безпеки суддів і членів їх сімей. охорони приміщень суду. громадського порядку під час здійснення правосуддя
B176: 1001190 | C176: Будівництво (придбання) житла для осіб рядового і начальницького складу органів внутрішніх справ
B177: 1001200 | C177: Державна підтримка фізкультурно-спортивного товариства "Динамо" України на організацію та проведення роботи з розвитку фізичної культури і спорту серед працівників і військовослужбовців правоохоронних органів
B178: 1001210 | C178: Видатки для Міністерства внутрішніх справ України на реалізацію заходів щодо підвищення обороноздатності і безпеки держави
B179: 1001220 | C179: Створення єдиної авіаційної системи безпеки та цивільного захисту
B180: 1002000 | C180: Адміністрація Державної прикордонної служби України
B181: 1002010 | C181: Керівництво та управління у сфері охорони державного кордону України
B182: 1002030 | C182: Забезпечення виконання завдань та функцій Державної прикордонної служби України
B183: 1002060 | C183: Підготовка кадрів та підвищення кваліфікації Національною академією Державної прикордонної служби України
B184: 1002070 | C184: Будівництво (придбання) житла для військовослужбовців Державної прикордонної служби України
B185: 1002080 | C185: Розвиток Державної прикордонної служби України
B186: 1002100 | C186: Облаштування та реконструкція державного кордону
B187: 1002110 | C187: Розвідувальна діяльність у сфері захисту державного кордону
B188: 1002120 | C188: Заходи з інженерно-технічного облаштування кордону
B189: 1002130 | C189: Видатки для Адміністрації Державної прикордонної служби України на реалізацію заходів щодо підвищення обороноздатності і безпеки держави
B190: 1002150 | C190: Cтворення системи охорони морських кордонів
B191: 1002600 | C191: Реалізація проекту з розбудови підрозділів охорони кордону
B192: 1002800 | C192: Будівництво. реконструкція та капітальний ремонт об'єктів Державної прикордонної служби України
B193: 1003000 | C193: Національна гвардія України
B194: 1003010 | C194: Керівництво та управління Національною гвардією України
B195: 1003020 | C195: Забезпечення виконання завдань та функцій Національної гвардії України
B196: 1003030 | C196: Охорона особливо важливих державних об'єктів. дипломатичних та консульських представництв іноземних держав на території України. супроводження перевезення ядерних матеріалів по території України
B197: 1003040 | C197: Фінансове забезпечення зобов'язань по сплаті земельного податку військовими частинами. закладами. установами та організаціями внутрішніх військ Міністерства внутрішніх справ. які утримуються за рахунок бюджету
B198: 1003050 | C198: Заходи. пов'язані із переходом на військову службу за контрактом
B199: 1003070 | C199: Підготовка кадрів для Національної гвардії України закладами вищої освіти
B200: 1003080 | C200: Стаціонарне лікування військовослужбовців Національної гвардії України у власних медичних закладах
... 1951 more rows

Sheet ДовидникКФК (hidden)
A1: 010000 | B1: Державне управління
A2: 010105 | B2: Апарат Верховної Ради Автономної Республіки Крим
A3: 010106 | B3: Забезпечення діяльності депутатів Автономної Республіки Крим
A4: 010108 | B4: Апарат Рахункової палати Верховної Ради Автономної Республіки Крим
A5: 010114 | B5: Апарат Ради міністрів Автономної Республіки Крим та її місцевих органів
A6: 010116 | B6: Органи місцевого самоврядування
A7: 010117 | B7: Органи виконавчої влади в м. Києві
A8: 060000 | B8: Правоохоронна діяльність та забезпечення безпеки держави
A9: 060103 | B9: Підрозділи дорожньо-патрульної служби та дорожнього нагляду
A10: 060106 | B10: Приймальники-розподільники для неповнолітніх
A11: 060107 | B11: Спеціальні приймальники-розподільники
A12: 060702 | B12: Місцева пожежна охорона
A13: 061002 | B13: Спеціальні монтажно-експлуатаційні підрозділи
A14: 061003 | B14: Адресно-довідкові бюро
A15: 061007 | B15: Інші правоохоронні заходи і заклади
A16: 070000 | B16: Освіта
A17: 070101 | B17: Дошкільні заклади освіти
A18: 070201 | B18: Загальноосвітні школи (в т.ч. школа-дитячий садок, інтернат при школі), спеціалізовані школи, ліцеї, гімназії, колегіуми
A19: 070202 | B19: Вечірні (змінні) школи
A20: 070301 | B20: Загальноосвітні школи-інтернати, загальноосвітні санаторні школи-інтернати
A21: 070302 | B21: Загальноосвітні школи-інтернати для дітей-сиріт та дітей, які залишилися без піклування батьків
A22: 070303 | B22: Дитячі будинки (в т.ч. сімейного типу, прийомні сім'ї)
A23: 070304 | B23: Спеціальні загальноосвітні школи-інтернати, школи та інші заклади освіти для дітей з вадами у фізичному чи розумовому розвитку
A24: 070307 | B24: Загальноосвітні спеціалізовані школи-інтернати з поглибленим вивченням окремих предметів і курсів для поглибленої підготовки дітей в галузі науки і мистецтв, фізичної культури і спорту, інших галузях, ліцеї з посиленою військово-фізичною підготовкою
A25: 070401 | B25: Позашкільні заклади освіти, заходи із позашкільної роботи з дітьми
A26: 070501 | B26: Професійно-технічні заклади освіти
A27: 070502 | B27: Професійно-технічні училища соціальної реабілітації
A28: 070601 | B28: Вищі заклади освіти І та ІІ рівнів акредитації
A29: 070602 | B29: Вищі заклади освіти ІІІ та ІV рівнів акредитації
A30: 070701 | B30: Заклади післядипломної освіти ІІІ-ІV рівнів акредитації (академії, інститути, центри підвищення кваліфікації, перепідготовки, вдосконалення)
A31: 070702 | B31: Інші заклади і заходи післядипломної освіти
A32: 070801 | B32: Придбання підручників
A33: 070802 | B33: Методична робота, інші заходи у сфері народної освіти
A34: 070803 | B34: Служби технічного нагляду за будівництвом і капітальним ремонтом
A35: 070804 | B35: Централізовані бухгалтерії обласних, міських, районних відділів освіти
A36: 070805 | B36: Групи централізованого господарського обслуговування
A37: 070806 | B37: Інші заклади освіти
A38: 070807 | B38: Інші освітні програми
A39: 070808 | B39: Допомога дітям-сиротам та дітям, позбавленим батьківського піклування, яким виповнюється 18 років
A40: 070809 | B40: Здійснення виплат, визначених Законом України "Про реструктуризацію заборгованості з виплат, передбачених статтею 57 Закону України "Про освіту" педагогічним, науково-педагогічним та іншим категоріям працівників навчальних закладів
A41: 080000 | B41: Охорона здоров"я
A42: 080101 | B42: Лікарні
A43: 080102 | B43: Територіальні медичні об'єднання
A44: 080201 | B44: Спеціалізовані лікарні та інші спеціалізовані заклади (центри, диспансери, госпіталі для інвалідів ВВВ, лепрозорії, медико-санітарні частини тощо, що мають ліжкову мережу)
A45: 080202 | B45: Клініки науково-дослідних інститутів
A46: 080203 | B46: Перинатальні центри, пологові будинки
A47: 080204 | B47: Санаторії для хворих туберкульозом
A48: 080205 | B48: Санаторії для дітей та підлітків (нетуберкульозні)
A49: 080206 | B49: Санаторії медичної реабілітації
A50: 080207 | B50: Будинки дитини
A51: 080208 | B51: Станції переливання крові
A52: 080209 | B52: Центри екстреної медичної допомоги та медицини катастроф, станції екстреної (швидкої) медичної допомоги
A53: 080300 | B53: Поліклініки і амбулаторії (крім спеціалізованих поліклінік та загальних і спеціалізованих стоматологічних поліклінік)
A54: 080400 | B54: Спеціалізовані поліклініки (в т.ч. диспансери, медико-санітарні частини, пересувні консультативні діагностичні центри тощо, які не мають ліжкового фонду)
A55: 080500 | B55: Загальні і спеціалізовані стоматологічні поліклініки
A56: 080600 | B56: Фельдшерсько-акушерські пункти
A57: 080703 | B57: Заходи боротьби з епідеміями
A58: 080704 | B58: Центри здоров'я і заходи у сфері санітарної освіти
A59: 080800 | B59: Центри первинної медичної (медико-санітарної) допомоги
A60: 081001 | B60: Медико-соціальні експертні комісії
A61: 081002 | B61: Інші заходи по охороні здоров'я
A62: 081003 | B62: Служби технічного нагляду за будівництвом та капітальним ремонтом, централізовані бухгалтерії, групи централізованого господарського обслуговування
A63: 081006 | B63: Програми і централізовані заходи з імунопрофілактики
A64: 081007 | B64: Програми і централізовані заходи боротьби з туберкульозом
A65: 081008 | B65: Програми і централізовані заходи профілактики СНІДу
A66: 081009 | B66: Забезпечення централізованих заходів з лікування хворих на цукровий та нецукровий діабет
A67: 081010 | B67: Централізовані заходи з лікування онкологічних хворих
A68: 090000 | B68: Соціальний захист та соціальне забезпечення
A69: 090201 | B69: Пільги ветеранам війни, особам, на яких поширюється чинність Закону України "Про статус ветеранів війни, гарантії їх соціального захисту", особам, які мають особливі заслуги перед Батьківщиною, вдовам (вдівцям) та батькам померлих (загиблих) осіб, які ма
A70: 090202 | B70: Пільги ветеранам війни, особам, на яких поширюється чинність Закону України "Про статус ветеранів війни, гарантії їх соціального захисту", особам, які мають особливі заслуги перед Батьківщиною, вдовам (вдівцям) та батькам померлих (загиблих) осіб, які ма
A71: 090203 | B71: Інші пільги ветеранам війни, особам, на яких поширюється чинність Закону України "Про статус ветеранів війни, гарантії їх соціального захисту", особам, які мають особливі заслуги перед Батьківщиною, вдовам (вдівцям) та батькам померлих (загиблих) осіб, я
A72: 090204 | B72: Пільги ветеранам військової служби, ветеранам органів внутрішніх справ, ветеранам податкової міліції, ветеранам державної пожежної охорони, ветеранам Державної кримінально-виконавчої служби, ветеранам служби цивільного захисту, ветеранам Державної служби
A73: 090205 | B73: Пільги ветеранам військової служби, ветеранам органів внутрішніх справ, ветеранам податкової міліції, ветеранам державної пожежної охорони, ветеранам Державної кримінально-виконавчої служби, ветеранам служби цивільного захисту, ветеранам Державної служби
A74: 090206 | B74: Інші пільги ветеранам військової служби, ветеранам органів внутрішніх справ, ветеранам податкової міліції, ветеранам державної пожежної охорони, ветеранам Державної кримінально-виконавчої служби, ветеранам служби цивільного захисту, ветеранам Державної с
A75: 090207 | B75: Пільги громадянам, які постраждали внаслідок Чорнобильської катастрофи, дружинам (чоловікам) та опікунам (на час опікунства) дітей померлих громадян, смерть яких пов'язана з Чорнобильською катастрофою, на житлово-комунальні послуги
A76: 090208 | B76: Пільги громадянам, які постраждали внаслідок Чорнобильської катастрофи, дружинам (чоловікам) та опікунам (на час опікунства) дітей померлих громадян, смерть яких пов'язана з Чорнобильською катастрофою, на придбання твердого палива
A77: 090209 | B77: Інші пільги громадянам, які постраждали внаслідок Чорнобильської катастрофи, дружинам (чоловікам) та опікунам (на час опікунства) дітей померлих громадян, смерть яких пов'язана з Чорнобильською катастрофою
A78: 090210 | B78: Пільги пенсіонерам з числа спеціалістів із захисту рослин, передбачені частиною четвертою статті 20 Закону України "Про захист рослин", громадянам, передбачені пунктом "ї" частини першої статті 77 Основ законодавства про охорону здоров'я, частиною п'ятою
A79: 090211 | B79: Пільги пенсіонерам з числа спеціалістів із захисту рослин, передбачені частиною четвертою статті 20 Закону України "Про захист рослин", громадянам, передбачені пунктом "ї" частини першої статті 77 Основ законодавства про охорону здоров'я, частиною п'ятою
A80: 090212 | B80: Пільги на медичне обслуговування громадянам, які постраждали внаслідок Чорнобильської катастрофи
A81: 090213 | B81: Оздоровлення громадян, які постраждали внаслідок Чорнобильської катастрофи
A82: 090214 | B82: Пільги окремим категоріям громадян з послуг зв'язку
A83: 090215 | B83: Пільги багатодітним сім'ям, дитячим будинкам сімейного типу та прийомним сім'ям, в яких не менше року проживають відповідно троє або більше дітей, а також сім'ям (крім багатодітних сімей), в яких не менше року проживають троє і більше дітей, враховуючи т
A84: 090216 | B84: Пільги багатодітним сім'ям, дитячим будинкам сімейного типу та прийомним сім'ям, в яких не менше року проживають відповідно троє або більше дітей, а також сім'ям (крім багатодітних сімей), в яких не менше року проживають троє і більше дітей, враховуючи т
A85: 090217 | B85: Компенсація втрати частини доходів у зв'язку з відміною податку з власників транспортних засобів та інших самохідних машин і механізмів та відповідним збільшенням ставок акцизного податку з пального
A86: 090302 | B86: Допомога у зв'язку з вагітністю і пологами
A87: 090303 | B87: Допомога до досягнення дитиною трирічного віку
A88: 090304 | B88: Допомога при народженні дитини
A89: 090305 | B89: Допомога на дітей, над якими встановлено опіку чи піклування
A90: 090306 | B90: Допомога на дітей одиноким матерям
A91: 090307 | B91: Тимчасова державна допомога дітям
A92: 090308 | B92: Допомога при усиновленні дитини
A93: 090401 | B93: Державна соціальна допомога малозабезпеченим сім'ям
A94: 090403 | B94: Виплата компенсації реабілітованим
A95: 090405 | B95: Субсидії населенню для відшкодування витрат на оплату житлово-комунальних послуг
A96: 090406 | B96: Субсидії населенню для відшкодування витрат на придбання твердого та рідкого пічного побутового палива і скрапленого газу
A97: 090407 | B97: Компенсація населенню додаткових витрат на оплату послуг газопостачання, центрального опалення та централізованого постачання гарячої води
A98: 090411 | B98: Кошти на забезпечення побутовим вугіллям окремих категорій населення
A99: 090412 | B99: Інші видатки на соціальний захист населення
A100: 090413 | B100: Допомога на догляд за інвалідом І чи ІІ групи внаслідок психічного розладу
A101: 090414 | B101: Компенсація особам, які згідно із статтями 43 та 48 Гірничого закону України мають право на безоплатне отримання вугілля на побутові потреби, але проживають у будинках, що мають центральне опалення
A102: 090416 | B102: Інші видатки на соціальний захист ветеранів війни та праці
A103: 090417 | B103: Витрати на поховання учасників бойових дій та інвалідів війни
A104: 090501 | B104: Організація та проведення громадських робіт
A105: 090601 | B105: Будинки-інтернати для малолітніх інвалідів
A106: 090700 | B106: Утримання закладів, що надають соціальні послуги дітям, які опинились в складних життєвих обставинах
A107: 090802 | B107: Інші програми соціального захисту дітей
A108: 090901 | B108: Будинки-інтернати (пансіонати) для літніх людей та інвалідів системи соціального захисту
A109: 090902 | B109: Інші будинки-інтернати для літніх людей та інвалідів
A110: 091101 | B110: Утримання центрів соціальних служб для сім`ї, дітей та молоді
A111: 091102 | B111: Програми і заходи центрів соціальних служб для сім`ї, дітей та молоді
A112: 091103 | B112: Соціальні програми і заходи державних органів у справах молоді
A113: 091104 | B113: Соціальні програми і заходи державних органів з питань забезпечення рівних прав та можливостей жінок і чоловіків
A114: 091105 | B114: Утримання клубів підлітків за місцем проживання
A115: 091106 | B115: Інші видатки
A116: 091107 | B116: Соціальні програми і заходи державних органів у справах сім'ї
A117: 091108 | B117: Заходи з оздоровлення та відпочинку дітей, крім заходів з оздоровлення дітей, що здійснюються за рахунок коштів на оздоровлення громадян, які постраждали внаслідок Чорнобильської катастрофи
A118: 091201 | B118: Розселення та облаштування депортованих кримських татар та осіб інших національностей, депортованих з України
A119: 091203 | B119: Навчання та трудове влаштування інвалідів
A120: 091204 | B120: Територіальні центри соціального обслуговування (надання соціальних послуг)
A121: 091205 | B121: Виплати грошової компенсації фізичним особам, які надають соціальні послуги громадянам похилого віку, інвалідам, дітям-інвалідам, хворим, які не здатні до самообслуговування і потребують сторонньої допомоги
A122: 091206 | B122: Центри соціальної реабілітації дітей - інвалідів; центри професійної реабілітації інвалідів
A123: 091207 | B123: Пільги, що надаються населенню (крім ветеранів війни і праці, військової служби, органів внутрішніх справ та громадян, які постраждали внаслідок Чорнобильської катастрофи), на оплату житлово-комунальних послуг і природного газу
A124: 091209 | B124: Фінансова підтримка громадських організацій інвалідів і ветеранів
A125: 091210 | B125: Служби технічного нагляду за будівництвом та капітальним ремонтом
A126: 091211 | B126: Централізовані бухгалтерії
A127: 091212 | B127: Обробка інформації з нарахування та виплати допомог і компенсацій
A128: 091214 | B128: Інші установи та заклади
A129: 091300 | B129: Державна соціальна допомога інвалідам з дитинства та дітям інвалідам
A130: 091303 | B130: Компенсаційні виплати інвалідам на бензин, ремонт, техобслуговування автотранспорту та транспортне обслуговування
A131: 091304 | B131: Встановлення телефонів інвалідам І та ІІ груп
A132: 100000 | B132: Житлово-комунальне господарство
A133: 100101 | B133: Житлово-експлуатаційне господарство
A134: 100102 | B134: Капітальний ремонт житлового фонду місцевих органів влади
A135: 100103 | B135: Дотація житлово-комунальному господарству
A136: 100105 | B136: Видатки на утримання об'єктів соціальної сфери підприємств, що передаються до комунальної власності
A137: 100106 | B137: Капітальний ремонт житлового фонду об'єднань співвласників багатоквартирних будинків
A138: 100201 | B138: Теплові мережі
A139: 100202 | B139: Водопровідно - каналізаційне господарство
A140: 100203 | B140: Благоустрій міст, сіл, селищ
A141: 100205 | B141: Газові заводи і газова мережа
A142: 100206 | B142: Готельне господарство
A143: 100207 | B143: Берегоукріплювальні роботи
A144: 100208 | B144: Видатки на впровадження засобів обліку витрат та регулювання споживання води та теплової енергії
A145: 100209 | B145: Заходи, пов"язані з поліпшенням питної води
A146: 100301 | B146: Збір та вивезення сміття і відходів, експлуатація каналізаційних систем
A147: 100302 | B147: Комбінати комунальних підприємств, районні виробничі об'єднання та інші підприємства, установи та організації житлово-комунального господарства
A148: 100303 | B148: Ремонтно-будівельні організації житлово-комунального господарства
A149: 100400 | B149: Підприємства і організації побутового обслуговування, що входять до комунальної власності
A150: 100601 | B150: Відшкодування різниці між розміром ціни (тарифу) на житлово-комунальні послуги, що затверджувалися або погоджувалися рішенням місцевого органу виконавчої влади та органу місцевого самоврядування, та розміром економічно обірунтованих витрат на їх виробн
A151: 100602 | B151: Погашення заборгованості з різниці в тарифах на теплову енергію, опалення та постачання гарячої води, послуги з централізованого водопостачання, водовідведення, що вироблялися, транспортувалися та постачалися населенню та/або іншим підприємствам централі
A152: 110000 | B152: Культура і мистецтво
A153: 110101 | B153: Творчі спілки
A154: 110102 | B154: Театри
A155: 110103 | B155: Філармонії, музичні колективи і ансамблі та інші мистецькі заклади та заходи
A156: 110104 | B156: Видатки на заходи, передбачені державними і місцевими програмами розвитку культури і мистецтва
A157: 110105 | B157: Фінансова підтримка гастрольної діяльності
A158: 110201 | B158: Бібліотеки
A159: 110202 | B159: Музеї і виставки
A160: 110203 | B160: Заповідники
A161: 110204 | B161: Палаци і будинки культури, клуби та інші заклади клубного типу
A162: 110205 | B162: Школи естетичного виховання дітей
A163: 110300 | B163: Кінематографія
A164: 110502 | B164: Інші культурно-освітні заклади та заходи
A165: 120000 | B165: Засоби масової інформації
A166: 120100 | B166: Телебачення і радіомовлення
A167: 120201 | B167: Періодичні видання (газети та журнали)
A168: 120300 | B168: Книговидання
A169: 120400 | B169: Інші засоби масової інформації
A170: 130000 | B170: Фізична культура і спорт
A171: 130102 | B171: Проведення навчально-тренувальних зборів і змагань
A172: 130104 | B172: Видатки на утримання центрів з інвалідного спорту і реабілітаційних шкіл
A173: 130105 | B173: Проведення навчально-тренувальних зборів і змагань та заходів з інвалідного спорту
A174: 130106 | B174: Проведення навчально-тренувальних зборів і змагань з неолімпійських видів спорту
A175: 130107 | B175: Утримання та навчально-тренувальна робота дитячо-юнацьких спортивних шкіл
A176: 130110 | B176: Фінансова підтримка спортивних споруд
A177: 130112 | B177: Інші видатки
A178: 130113 | B178: Централізовані бухгалтерії
A179: 130114 | B179: Забезпечення підготовки спортсменів вищих категорій школами вищої спортивної майстерності
A180: 130115 | B180: Центри "Спорт для всіх" та заходи з фізичної культури
A181: 130201 | B181: Проведення навчально-тренувальних зборів і змагань (які проводяться громадськими організаціями фізкультурно-спортивної спрямованості)
A182: 130202 | B182: Проведення заходів з нетрадиційних видів спорту і масових заходів з фізичної культури (які проводяться громадськими організаціями фізкультурно-спортивної спрямованості)
A183: 130203 | B183: Утримання та навчально-тренувальна робота дитячо-юнацьких спортивних шкіл (які підпорядковані громадським організаціям фізкультурно-спортивної спрямованості)
A184: 130204 | B184: Утримання апарату управління громадських фізкультурно-спортивних організацій
A185: 130205 | B185: Фінансова підтримка спортивних споруд, які належать громадським організаціям фізкультурно-спортивної спрямованості
A186: 150000 | B186: Будівництво
A187: 150101 | B187: Капітальні вкладення
A188: 150104 | B188: Виплата компенсації на здешевлення вартості будівництва житла молодіжним житловим комплексам
A189: 150107 | B189: Житлове будівництво і придбання житла військовослужбовцям та особам рядового і начальницького складу, звільненим у запас або відставку за станом здоров`я, віком, вислугою років та у зв`язку із скороченням штатів, які перебувають на квартирному обліку з
A190: 150109 | B190: Компенсація селянським (фермерським) господарствам вартості будівництва об'єктів виробничого і невиробничого призначення
A191: 150110 | B191: Проведення невідкладних відновлювальних робіт, будівництво та реконструкція загальноосвітніх навчальних закладів
A192: 150111 | B192: Проведення невідкладних відновлювальних робіт, будівництво та реконструкція спеціалізованих навчальних закладів
A193: 150112 | B193: Проведення невідкладних відновлювальних робіт, будівництво та реконструкція позашкільних навчальних закладів
A194: 150114 | B194: Проведення невідкладних відновлювальних робіт, будівництво та реконструкція лікарень загального профілю
A195: 150115 | B195: Завершення проектів газифікації сільських населених пунктів з високим ступенем готовності
A196: 150118 | B196: Житлове будівництво та придбання житла для окремих категорій населення
A197: 150119 | B197: Проведення невідкладних відновлювальних робіт, будівництво та реконструкція спеціалізованих лікарень та інших спеціалізованих закладів
A198: 150120 | B198: Будівництво та розвиток мережі метрополітенів
A199: 150121 | B199: Заходи з упередження аварій та запобігання техногенних катастроф у житлово-комунальному господарстві та на інших аварійних об'єктах комунальної власності
A200: 150122 | B200: Інвестиційні проекти
... 143 more rows

Sheet ДовидникКВК(ГОС) (hidden)
A1: 11 | B1: Апарат Верховної Ради України
A2: 30 | B2: Державне управління справами
A3: 41 | B3: Господарсько-фінансовий департамент Секретаріату Кабінету Міністрів України
A4: 42 | B4: Господарсько-фінансовий департамент Секретаріату Кабінету Міністрів України (загальнодержавні видатки та кредитування)
A5: 50 | B5: Державна судова адміністрація України
A6: 55 | B6: Верховний Суд
A7: 80 | B7: Конституційний Суд України
A8: 85 | B8: Вищий антикорупційний суд
A9: 90 | B9: Офіс Генерального прокурора
A10: 95 | B10: Вищий суд з питань інтелектуальної власності
A11: 100 | B11: Міністерство внутрішніх справ України
A12: 120 | B12: Міністерство розвитку економіки, торгівлі та сільського господарства України
A13: 121 | B13: Міністерство розвитку економіки, торгівлі та сільського господарства України (загальнодержавні видатки та кредитування)
A14: 140 | B14: Міністерство закордонних справ України
A15: 150 | B15: Міністерство у справах ветеранів, тимчасово окупованих територій та внутрішньо переміщених осіб України
A16: 151 | B16: Міністерство у справах ветеранів, тимчасово окупованих територій та внутрішньо переміщених осіб України (загальнодержавні видатки та кредитування)
A17: 181 | B17: Міністерство культури України (загальнодержавні витрати)
A18: 190 | B18: Державне агентство лісових ресурсів України
A19: 210 | B19: Міністерство оборони України
A20: 220 | B20: Міністерство освіти і науки України
A21: 221 | B21: Міністерство освіти і науки України (загальнодержавні видатки та кредитування)
A22: 230 | B22: Міністерство охорони здоров'я України
A23: 231 | B23: Міністерство охорони здоров'я України (загальнодержавні видатки та кредитування)
A24: 240 | B24: Міністерство енергетики та захисту довкілля України
A25: 241 | B25: Міністерство енергетики та захисту довкілля України (загальнодержавні видатки та кредитування)
A26: 250 | B26: Міністерство соціальної політики України
A27: 251 | B27: Міністерство соціальної політики України (загальнодержавні видатки та кредитування)
A28: 275 | B28: Міністерство розвитку громад та територій України
A29: 276 | B29: Міністерство розвитку громад та територій України (загальнодержавні видатки та кредитування)
A30: 290 | B30: Міністерство цифрової трансформації України
A31: 291 | B31: Міністерство цифрової трансформації України (загальнодержавні видатки та кредитування)
A32: 310 | B32: Міністерство інфраструктури України
A33: 311 | B33: Державне агентство автомобільних доріг України
A34: 312 | B34: Міністерство інфраструктури України (загальнодержавні видатки та кредитування)
A35: 313 | B35: Державне агентство автомобільних доріг України (загальнодержавні видатки та кредитування)
A36: 320 | B36: Міністерство надзвичайних ситуацій України
A37: 321 | B37: Міністерство надзвичайних ситуацій України (загальнодержавні витрати)
A38: 350 | B38: Міністерство фінансів України
A39: 351 | B39: Міністерство фінансів України (загальнодержавні видатки та кредитування)
A40: 360 | B40: Міністерство юстиції України
A41: 380 | B41: Міністерство культури, молоді та спорту України
A42: 381 | B42: Міністерство культури, молоді та спорту України (загальнодержавні видатки та кредитування)
A43: 527 | B43: Державна інспекція ядерного регулювання України
A44: 534 | B44: Адміністрація Державної прикордонної служби України
A45: 550 | B45: Національна комісія, що здійснює державне регулювання у сфері ринків фінансових послуг
A46: 555 | B46: Державна служба України з контролю за наркотиками
A47: 556 | B47: Національна комісія, що здійснює державне регулювання у сфері зв'язку та інформатизації
A48: 596 | B48: Головне управління розвідки Міністерства оборони України
A49: 597 | B49: Уповноважений із захисту державної мови
A50: 598 | B50: Вища рада правосуддя
A51: 599 | B51: Секретаріат Уповноваженого Верховної Ради України з прав людини
A52: 601 | B52: Антимонопольний комітет України
A53: 612 | B53: Національне агентство України з питань державної служби
A54: 615 | B54: Національна комісія з цінних паперів та фондового ринку
A55: 632 | B55: Національне антикорупційне бюро України
A56: 633 | B56: Національне агентство з питань запобігання корупції
A57: 634 | B57: Національна комісія, що здійснює державне регулювання у сферах енергетики та комунальних послуг
A58: 637 | B58: Національна комісія, що здійснює державне регулювання у сфері енергетики
A59: 638 | B59: Державне космічне агентство України
A60: 642 | B60: Державне бюро розслідувань
A61: 643 | B61: Нацiональне агентство України з питань виявлення, розшуку та управлiння активами, одержаними вiд корупцiйних та iнших злочинiв
A62: 644 | B62: Національна рада України з питань телебачення і радіомовлення
A63: 645 | B63: Національна комісія, що здійснює державне регулювання у сфері комунальних послуг
A64: 650 | B64: Рада національної безпеки і оборони України
A65: 651 | B65: Рахункова палата
A66: 652 | B66: Служба безпеки України
A67: 654 | B67: Національна академія наук України
A68: 655 | B68: Національна академія педагогічних наук України
A69: 656 | B69: Національна академія медичних наук України
A70: 657 | B70: Національна академія мистецтв України
A71: 658 | B71: Національна академія правових наук України
A72: 659 | B72: Національна академія аграрних наук України
A73: 660 | B73: Управління державної охорони України
A74: 661 | B74: Фонд державного майна України
A75: 662 | B75: Служба зовнішньої розвідки України
A76: 664 | B76: Адміністрація Державної служби спеціального зв'язку та захисту інформації України
A77: 665 | B77: Національне агентство з питань підготовки та проведення в Україні фінальної частини чемпіонату європи2012 року з футболу та реалізації інфраструктурних проектів
A78: 673 | B78: Центральна виборча комісія
A79: 674 | B79: Центральна виборча комісія (загальнодержавні видатки та кредитування)
A80: 680 | B80: Національна акціонерна компанія "Украгролізинг"
A81: 771 | B81: Рада міністрів Автономної Республіки Крим
A82: 772 | B82: Вінницька обласна державна адміністрація
A83: 773 | B83: Волинська обласна державна адміністрація
A84: 774 | B84: Дніпропетровська обласна державна адміністрація
A85: 775 | B85: Донецька обласна державна адміністрація
A86: 776 | B86: Житомирська обласна державна адміністрація
A87: 777 | B87: Закарпатська обласна державна адміністрація
A88: 778 | B88: Запорізька обласна державна адміністрація
A89: 779 | B89: Івано-Франківська обласна державна адміністрація
A90: 780 | B90: Київська обласна державна адміністрація
A91: 781 | B91: Кіровоградська обласна державна адміністрація
A92: 782 | B92: Луганська обласна державна адміністрація
A93: 783 | B93: Львівська обласна державна адміністрація
A94: 784 | B94: Миколаївська обласна державна адміністрація
A95: 785 | B95: Одеська обласна державна адміністрація
A96: 786 | B96: Полтавська обласна державна адміністрація
A97: 787 | B97: Рівненська обласна державна адміністрація
A98: 788 | B98: Сумська обласна державна адміністрація
A99: 789 | B99: Тернопільська обласна державна адміністрація
A100: 790 | B100: Харківська обласна державна адміністрація
A101: 791 | B101: Херсонська обласна державна адміністрація
A102: 792 | B102: Хмельницька обласна державна адміністрація
A103: 793 | B103: Черкаська обласна державна адміністрація
A104: 794 | B104: Чернівецька обласна державна адміністрація
A105: 795 | B105: Чернігівська обласна державна адміністрація
A106: 796 | B106: Київська міська державна админістрація
A107: 797 | B107: Севастопольська міська державна адміністрація
A108: 868 | B108: Державна регуляторна служба України
A122: - | B122: -

Sheet КПКВМБ (hidden)
A1: 0100 | B1: Державне управління
A2: 0110 | B2: Організаційне, інформаційно-аналітичне та матеріально-технічне забезпечення діяльності Верховної Ради Автономної Республіки Крим
A3: 0120 | B3: Організаційне, інформаційно-аналітичне та матеріально-технічне забезпечення діяльності Рахункової палати Верховної Ради Автономної Республіки Крим
A4: 0130 | B4: Організаційне, інформаційно-аналітичне та матеріально-технічне забезпечення діяльності Ради міністрів Автономної Республіки Крим
A5: 0140 | B5: Керівництво і управління у відповідній сфері в Автономній Республіці Крим
A6: 0150 | B6: Організаційне, інформаційно-аналітичне та матеріально-технічне забезпечення діяльності обласної ради, районної ради, районної у місті ради (у разі її створення), міської, селищної, сільської рад
A7: 0160 | B7: Керівництво і управління у відповідній сфері у містах (місті Києві), селищах, селах, територіальних громадах
A8: 0170 | B8: Підвищення кваліфікації депутатів місцевих рад та посадових осіб місцевого самоврядування
A9: 0180 | B9: Інша діяльність у сфері державного управління
A10: 0190 | B10: Проведення місцевих виборів та референдумів, забезпечення діяльності виборчої комісії Автономної Республіки Крим
A11: 0191 | B11: Проведення місцевих виборів
A12: 0192 | B12: Проведення місцевих референдумів
A13: 0193 | B13: Забезпечення діяльності виборчої комісії Автономної Республіки Крим
A14: 1000 | B14: Освіта
A15: 1010 | B15: Надання дошкільної освіти
A16: 1020 | B16: Надання загальної середньої освіти за рахунок коштів місцевого бюджету
A17: 1021 | B17: Надання загальної середньої освіти закладами загальної середньої освіти
A18: 1022 | B18: Надання загальної середньої освіти спеціальними закладами загальної середньої освіти для дітей, які потребують корекції фізичного та/або розумового розвитку
A19: 1023 | B19: Надання загальної середньої освіти спеціалізованими закладами загальної середньої освіти
A20: 1024 | B20: Забезпечення належних умов для виховання та розвитку дітей-сиріт і дітей, позбавлених батьківського піклування, в дитячих будинках
A21: 1025 | B21: Надання загальної середньої освіти навчально-реабілітаційними центрами для дітей з особливими освітніми потребами, зумовленими складними порушеннями розвитку
A22: 1026 | B22: Надання загальної середньої освіти міжшкільними ресурсними центрами
A23: 1030 | B23: Надання загальної середньої освіти за рахунок освітньої субвенції
A24: 1031 | B24: Надання загальної середньої освіти закладами загальної середньої освіти
A25: 1032 | B25: Надання загальної середньої освіти спеціальними закладами загальної середньої освіти для дітей, які потребують корекції фізичного та/або розумового розвитку
A26: 1033 | B26: Надання загальної середньої освіти спеціалізованими закладами загальної середньої освіти
A27: 1034 | B27: Забезпечення належних умов для виховання та розвитку дітей-сиріт і дітей, позбавлених батьківського піклування, в дитячих будинках
A28: 1035 | B28: Надання загальної середньої освіти навчально-реабілітаційними центрами для дітей з особливими освітніми потребами, зумовленими складними порушеннями розвитку
A29: 1040 | B29: Надання загальної середньої освіти за рахунок залишку коштів за освітньою субвенцією, що мають цільове призначення, виділених відповідно до рішень Кабінету Міністрів України у попередньому бюджетному періоді
A30: 1041 | B30: Надання загальної середньої освіти закладами загальної середньої освіти
A31: 1042 | B31: Надання загальної середньої освіти спеціальними закладами загальної середньої освіти для дітей, які потребують корекції фізичного та/або розумового розвитку
A32: 1043 | B32: Надання загальної середньої освіти спеціалізованими закладами загальної середньої освіти
A33: 1044 | B33: Забезпечення належних умов для виховання та розвитку дітей-сиріт і дітей, позбавлених батьківського піклування, в дитячих будинках
A34: 1045 | B34: Надання загальної середньої освіти навчально-реабілітаційними центрами для дітей з особливими освітніми потребами, зумовленими складними порушеннями розвитку
A35: 1050 | B35: Закупівля товарів, робіт і послуг, необхідних для забезпечення безпечного навчального процесу у закладах загальної середньої освіти, за рахунок залишку коштів за освітньою субвенцією (COVID-19)
A36: 1051 | B36: Надання загальної середньої освіти закладами загальної середньої освіти
A37: 1052 | B37: Надання загальної середньої освіти спеціальними закладами загальної середньої освіти для дітей, які потребують корекції фізичного та/або розумового розвитку
A38: 1053 | B38: Надання загальної середньої освіти спеціалізованими закладами загальної середньої освіти
A39: 1054 | B39: Забезпечення належних умов для виховання та розвитку дітей-сиріт і дітей, позбавлених батьківського піклування, в дитячих будинках
A40: 1055 | B40: Надання загальної середньої освіти навчально-реабілітаційними центрами для дітей з особливими освітніми потребами, зумовленими складними порушеннями розвитку
A41: 1060 | B41: Надання загальної середньої освіти за рахунок залишку коштів за освітньою субвенцією (крім залишку коштів, що мають цільове призначення, виділених відповідно до рішень Кабінету Міністрів України у попередньому бюджетному періоді, а також коштів, необхідних для забезпечення безпечного навчального процесу у закладах загальної середньої освіти)
A42: 1061 | B42: Надання загальної середньої освіти закладами загальної середньої освіти
A43: 1062 | B43: Надання загальної середньої освіти спеціальними закладами загальної середньої освіти для дітей, які потребують корекції фізичного та/або розумового розвитку
A44: 1063 | B44: Надання загальної середньої освіти спеціалізованими закладами загальної середньої освіти
A45: 1064 | B45: Забезпечення належних умов для виховання та розвитку дітей-сиріт і дітей, позбавлених батьківського піклування, в дитячих будинках
A46: 1065 | B46: Надання загальної середньої освіти навчально-реабілітаційними центрами для дітей з особливими освітніми потребами, зумовленими складними порушеннями розвитку
A47: 1070 | B47: Надання позашкільної освіти закладами позашкільної освіти, заходи із позашкільної роботи з дітьми
A48: 1080 | B48: Надання спеціальної освіти мистецькими школами
A49: 1090 | B49: Підготовка кадрів закладами професійної (професійно-технічної) освіти та іншими закладами освіти
A50: 1091 | B50: Підготовка кадрів закладами професійної (професійно-технічної) освіти та іншими закладами освіти за рахунок коштів місцевого бюджету
A51: 1092 | B51: Підготовка кадрів закладами професійної (професійно-технічної) освіти та іншими закладами освіти за рахунок освітньої субвенції
A52: 1093 | B52: Підготовка кадрів закладами професійної (професійно-технічної) освіти та іншими закладами освіти за рахунок залишку коштів за освітньою субвенцією, що мають цільове призначення, виділених відповідно до рішень Кабінету Міністрів України у попередньому бюджетному періоді
A53: 1094 | B53: Підготовка кадрів закладами професійної (професійно-технічної) освіти та іншими закладами освіти за рахунок залишку коштів за освітньою субвенцією (крім залишку коштів, що мають цільове призначення, виділених відповідно до рішень Кабінету Міністрів України у попередньому бюджетному періоді)
A54: 1100 | B54: Підготовка кадрів закладами фахової передвищої освіти
A55: 1101 | B55: Підготовка кадрів закладами фахової передвищої освіти за рахунок коштів місцевого бюджету
A56: 1102 | B56: Підготовка кадрів закладами фахової передвищої освіти за рахунок освітньої субвенції
A57: 1103 | B57: Підготовка кадрів закладами фахової передвищої освіти за рахунок залишку коштів за освітньою субвенцією, що мають цільове призначення, виділених відповідно до рішень Кабінету Міністрів України у попередньому бюджетному періоді
A58: 1104 | B58: Підготовка кадрів закладами фахової передвищої освіти за рахунок залишку коштів за освітньою субвенцією (крім залишку коштів, що мають цільове призначення, виділених відповідно до рішень Кабінету Міністрів України у попередньому бюджетному періоді)
A59: 1110 | B59: Підготовка кадрів закладами вищої освіти
A60: 1120 | B60: Підвищення кваліфікації, перепідготовка кадрів закладами післядипломної освіти
A61: 1130 | B61: Методичне забезпечення діяльності закладів освіти
A62: 1140 | B62: Інші програми, заклади та заходи у сфері освіти
A63: 1141 | B63: Забезпечення діяльності інших закладів у сфері освіти
A64: 1142 | B64: Інші програми та заходи у сфері освіти
A65: 1150 | B65: Забезпечення діяльності інклюзивно-ресурсних центрів
A66: 1151 | B66: Забезпечення діяльності інклюзивно-ресурсних центрів за рахунок коштів місцевого бюджету
A67: 1152 | B67: Забезпечення діяльності інклюзивно-ресурсних центрів за рахунок освітньої субвенції
A68: 1153 | B68: Забезпечення діяльності інклюзивно-ресурсних центрів за рахунок залишку коштів за освітньою субвенцією, що мають цільове призначення, виділених відповідно до рішень Кабінету Міністрів України у попередньому бюджетному періоді
A69: 1154 | B69: Забезпечення діяльності інклюзивно-ресурсних центрів за рахунок залишку коштів за освітньою субвенцією (крім залишку коштів, що мають цільове призначення, виділених відповідно до рішень Кабінету Міністрів України у попередньому бюджетному періоді)
A70: 1160 | B70: Забезпечення діяльності центрів професійного розвитку педагогічних працівників
A71: 1170 | B71: Виконання заходів в рамках реалізації програми "Спроможна школа для кращих результатів"
A72: 1171 | B72: Співфінансування заходів, що реалізуються за рахунок субвенції з державного бюджету місцевим бюджетам на реалізацію програми "Спроможна школа для кращих результатів"
A73: 1172 | B73: Виконання заходів в рамках реалізації програми "Спроможна школа для кращих результатів" за рахунок субвенції з державного бюджету місцевим бюджетам
A74: 1180 | B74: Виконання заходів, спрямованих на забезпечення якісної, сучасної та доступної загальної середньої освіти "Нова українська школа"
A75: 1181 | B75: Співфінансування заходів, що реалізуються за рахунок субвенції з державного бюджету місцевим бюджетам на забезпечення якісної, сучасної та доступної загальної середньої освіти "Нова українська школа"
A76: 1182 | B76: Виконання заходів, спрямованих на забезпечення якісної, сучасної та доступної загальної середньої освіти "Нова українська школа" за рахунок субвенції з державного бюджету місцевим бюджетам
A77: 1200 | B77: Надання освіти за рахунок субвенції з державного бюджету місцевим бюджетам на надання державної підтримки особам з особливими освітніми потребами
A78: 1210 | B78: Надання освіти за рахунок залишку коштів за субвенцією з державного бюджету місцевим бюджетам на надання державної підтримки особам з особливими освітніми потребами
A79: 2000 | B79: Охорона здоров'я
A80: 2010 | B80: Багатопрофільна стаціонарна медична допомога населенню
A81: 2020 | B81: Спеціалізована стаціонарна медична допомога населенню
A82: 2030 | B82: Лікарсько-акушерська допомога вагітним, породіллям та новонародженим
A83: 2040 | B83: Санаторно-курортна допомога населенню
A84: 2050 | B84: Медико-соціальний захист дітей-сиріт і дітей, позбавлених батьківського піклування
A85: 2060 | B85: Створення банків крові та її компонентів
A86: 2070 | B86: Екстрена та швидка медична допомога населенню
A87: 2080 | B87: Амбулаторно-поліклінічна допомога населенню, крім первинної медичної допомоги
A88: 2090 | B88: Спеціалізована амбулаторно-поліклінічна допомога населенню
A89: 2100 | B89: Стоматологічна допомога населенню
A90: 2110 | B90: Первинна медична допомога населенню
A91: 2111 | B91: Первинна медична допомога населенню, що надається центрами первинної медичної (медико-санітарної) допомоги
A92: 2112 | B92: Первинна медична допомога населенню, що надається фельдшерськими, фельдшерсько-акушерськими пунктами
A93: 2113 | B93: Первинна медична допомога населенню, що надається амбулаторно-поліклінічними закладами (відділеннями)
A94: 2120 | B94: Інформаційно-методичне та просвітницьке забезпечення в галузі охорони здоров'я
A95: 2130 | B95: Проведення належної медико-соціальної експертизи (МСЕК)
A96: 2140 | B96: Програми і централізовані заходи у галузі охорони здоров'я
A97: 2141 | B97: Програми і централізовані заходи з імунопрофілактики
A98: 2142 | B98: Програми і централізовані заходи боротьби з туберкульозом
A99: 2143 | B99: Програми і централізовані заходи профілактики ВІЛ-інфекції/СНІДу
A100: 2144 | B100: Централізовані заходи з лікування хворих на цукровий та нецукровий діабет
A101: 2145 | B101: Централізовані заходи з лікування онкологічних хворих
A102: 2146 | B102: Відшкодування вартості лікарських засобів для лікування окремих захворювань
A103: 2150 | B103: Інші програми, заклади та заходи у сфері охорони здоров'я
A104: 2151 | B104: Забезпечення діяльності інших закладів у сфері охорони здоров'я
A105: 2152 | B105: Інші програми та заходи у сфері охорони здоров'я
A106: 3000 | B106: Соціальний захист та соціальне забезпечення
A107: 3020 | B107: Забезпечення побутовим вугіллям окремих категорій громадян
A108: 3030 | B108: Надання пільг з оплати послуг зв'язку, інших передбачених законодавством пільг окремим категоріям громадян та компенсації за пільговий проїзд окремих категорій громадян
A109: 3031 | B109: Надання інших пільг окремим категоріям громадян відповідно до законодавства
A110: 3032 | B110: Надання пільг окремим категоріям громадян з оплати послуг зв'язку
A111: 3033 | B111: Компенсаційні виплати на пільговий проїзд автомобільним транспортом окремим категоріям громадян
A112: 3034 | B112: Компенсаційні виплати за пільговий проїзд окремих категорій громадян на водному транспорті
A113: 3035 | B113: Компенсаційні виплати за пільговий проїзд окремих категорій громадян на залізничному транспорті
A114: 3036 | B114: Компенсаційні виплати на пільговий проїзд електротранспортом окремим категоріям громадян
A115: 3050 | B115: Пільгове медичне обслуговування осіб, які постраждали внаслідок Чорнобильської катастрофи
A116: 3060 | B116: Оздоровлення громадян, які постраждали внаслідок Чорнобильської катастрофи
A117: 3070 | B117: Виплата компенсації реабілітованим
A118: 3090 | B118: Видатки на поховання учасників бойових дій та осіб з інвалідністю внаслідок війни
A119: 3100 | B119: Надання соціальних та реабілітаційних послуг громадянам похилого віку, особам з інвалідністю, дітям з інвалідністю в установах соціального обслуговування
A120: 3101 | B120: Забезпечення соціальними послугами стаціонарного догляду з наданням місця для проживання дітей з вадами фізичного та розумового розвитку
A121: 3102 | B121: Забезпечення соціальними послугами стаціонарного догляду з наданням місця для проживання, всебічної підтримки, захисту та безпеки осіб, які не можуть вести самостійний спосіб життя через похилий вік, фізичні та розумові вади, психічні захворювання або інші хвороби
A122: 3103 | B122: Навчання та трудове влаштування осіб з інвалідністю
A123: 3104 | B123: Забезпечення соціальними послугами за місцем проживання громадян, які не здатні до самообслуговування у зв'язку з похилим віком, хворобою, інвалідністю
A124: 3105 | B124: Надання реабілітаційних послуг особам з інвалідністю та дітям з інвалідністю
A125: 3110 | B125: Заклади і заходи з питань дітей та їх соціального захисту
A126: 3111 | B126: Утримання закладів, що надають соціальні послуги дітям, які опинились у складних життєвих обставинах, підтримка функціонування дитячих будинків сімейного типу та прийомних сімей
A127: 3112 | B127: Заходи державної політики з питань дітей та їх соціального захисту
A128: 3113 | B128: Підтримка та утримання малих групових будинків
A129: 3120 | B129: Здійснення соціальної роботи з вразливими категоріями населення
A130: 3121 | B130: Утримання та забезпечення діяльності центрів соціальних служб
A131: 3122 | B131: Заходи державної політики із забезпечення рівних прав та можливостей жінок та чоловіків
A132: 3123 | B132: Заходи державної політики з питань сім'ї
A133: 3130 | B133: Реалізація державної політики у молодіжній сфері
A134: 3131 | B134: Здійснення заходів та реалізація проектів на виконання Державної цільової соціальної програми "Молодь України"
A135: 3132 | B135: Утримання клубів для підлітків за місцем проживання
A136: 3133 | B136: Інші заходи та заклади молодіжної політики
A137: 3140 | B137: Оздоровлення та відпочинок дітей (крім заходів з оздоровлення дітей, що здійснюються за рахунок коштів на оздоровлення громадян, які постраждали внаслідок Чорнобильської катастрофи)
A138: 3150 | B138: Розселення та облаштування депортованих кримських татар та осіб інших національностей, депортованих з України
A139: 3160 | B139: Надання соціальних гарантій фізичним особам, які надають соціальні послуги громадянам похилого віку, особам з інвалідністю, дітям з інвалідністю, хворим, які не здатні до самообслуговування і потребують сторонньої допомоги
A140: 3170 | B140: Забезпечення реалізації окремих програм для осіб з інвалідністю
A141: 3171 | B141: Компенсаційні виплати особам з інвалідністю на бензин, ремонт, технічне обслуговування автомобілів, мотоколясок і на транспортне обслуговування
A142: 3172 | B142: Встановлення телефонів особам з інвалідністю I і II груп
A143: 3180 | B143: Надання пільг населенню (крім ветеранів війни і праці, військової служби, органів внутрішніх справ та громадян, які постраждали внаслідок Чорнобильської катастрофи) на оплату житлово-комунальних послуг
A144: 3190 | B144: Соціальний захист ветеранів війни та праці
A145: 3191 | B145: Інші видатки на соціальний захист ветеранів війни та праці
A146: 3192 | B146: Надання фінансової підтримки громадським об'єднанням ветеранів і осіб з інвалідністю, діяльність яких має соціальну спрямованість
A147: 3200 | B147: Забезпечення обробки інформації з нарахування та виплати допомог і компенсацій
A148: 3210 | B148: Організація та проведення громадських робіт
A149: 3220 | B149: Грошова компенсація за належні для отримання жилі приміщення для окремих категорій населення відповідно до законодавства
A150: 3221 | B150: Грошова компенсація за належні для отримання жилі приміщення для сімей осіб, визначених абзацами 5 - 8 пункту 1 статті 10 Закону України "Про статус ветеранів війни, гарантії їх соціального захисту", для осіб з інвалідністю I - II групи, яка настала внаслідок поранення, контузії, каліцтва або захворювання, одержаних під час безпосередньої участі в антитерористичній операції, забезпеченні її проведення, здійсненні заходів із забезпечення національної безпеки і оборони, відсічі і стримування збройної агресії Російської Федерації у Донецькій та Луганській областях, забезпеченні їх здійснення, визначених пунктами 11 - 14 частини другої статті 7 Закону України "Про статус ветеранів війни, гарантії їх соціального захисту", та які потребують поліпшення житлових умов
A151: 3222 | B151: Грошова компенсація за належні для отримання жилі приміщення для внутрішньо переміщених осіб, які захищали незалежність, суверенітет та територіальну цілісність України і брали безпосередню участь в антитерористичній операції, забезпеченні її проведення, перебуваючи безпосередньо в районах антитерористичної операції у період її проведення, у здійсненні заходів із забезпечення національної безпеки і оборони, відсічі і стримування збройної агресії Російської Федерації у Донецькій та Луганській областях, забезпеченні їх здійснення, перебуваючи безпосередньо в районах та у період здійснення зазначених заходів, та визнані особами з інвалідністю внаслідок війни III групи відповідно до пунктів 11 - 14 частини другої статті 7 або учасниками бойових дій відповідно до пунктів 19 - 20 частини першої статті 6 Закону України "Про статус ветеранів війни, гарантії їх соціального захисту", та які потребують поліпшення житлових умов
A152: 3223 | B152: Грошова компенсація за належні для отримання жилі приміщення для сімей учасників бойових дій на території інших держав, визначених у абзаці першому пункту 1 статті 10 Закону України "Про статус ветеранів війни, гарантії їх соціального захисту", для осіб з інвалідністю I - II групи з числа учасників бойових дій на території інших держав, інвалідність яких настала внаслідок поранення, контузії, каліцтва або захворювання, пов'язаних з перебуванням у цих державах, визначених пунктом 7 частини другої статті 7 Закону України "Про статус ветеранів війни, гарантії їх соціального захисту", та які потребують поліпшення житлових умов
A153: 3224 | B153: Грошова компенсація за належні для отримання жилі приміщення для сімей осіб, визначених у абзаці чотирнадцятому пункту 1 статті 10 Закону України "Про статус ветеранів війни, гарантії їх соціального захисту", для осіб з інвалідністю I - II групи, які стали особами з інвалідністю внаслідок поранень, каліцтва, контузії чи інших ушкоджень здоров'я, одержаних під час участі у Революції Гідності, визначених пунктом 10 частини другої статті 7 Закону України "Про статус ветеранів війни, гарантії їх соціального захисту", та які потребують поліпшення житлових умов
A154: 3240 | B154: Інші заклади та заходи
A155: 3241 | B155: Забезпечення діяльності інших закладів у сфері соціального захисту і соціального забезпечення
A156: 3242 | B156: Інші заходи у сфері соціального захисту і соціального забезпечення
A157: 4000 | B157: Культура і мистецтво
A158: 4010 | B158: Фінансова підтримка театрів
A159: 4020 | B159: Фінансова підтримка філармоній, художніх і музичних колективів, ансамблів, концертних та циркових організацій
A160: 4030 | B160: Забезпечення діяльності бібліотек
A161: 4040 | B161: Забезпечення діяльності музеїв і виставок
A162: 4050 | B162: Забезпечення діяльності заповідників
A163: 4060 | B163: Забезпечення діяльності палаців і будинків культури, клубів, центрів дозвілля та інших клубних закладів
A164: 4070 | B164: Фінансова підтримка кінематографії
A165: 4080 | B165: Інші заклади та заходи в галузі культури і мистецтва
A166: 4081 | B166: Забезпечення діяльності інших закладів в галузі культури і мистецтва
A167: 4082 | B167: Інші заходи в галузі культури і мистецтва
A168: 5000 | B168: Фізична культура і спорт
A169: 5010 | B169: Проведення спортивної роботи в регіоні
A170: 5011 | B170: Проведення навчально-тренувальних зборів і змагань з олімпійських видів спорту
A171: 5012 | B171: Проведення навчально-тренувальних зборів і змагань з неолімпійських видів спорту
A172: 5020 | B172: Здійснення фізкультурно-спортивної та реабілітаційної роботи серед осіб з інвалідністю
A173: 5021 | B173: Утримання центрів фізичної культури і спорту осіб з інвалідністю і реабілітаційних шкіл
A174: 5022 | B174: Проведення навчально-тренувальних зборів і змагань та заходів зі спорту осіб з інвалідністю
A175: 5030 | B175: Розвиток дитячо-юнацького та резервного спорту
A176: 5031 | B176: Утримання та навчально-тренувальна робота комунальних дитячо-юнацьких спортивних шкіл
A177: 5032 | B177: Фінансова підтримка дитячо-юнацьких спортивних шкіл фізкультурно-спортивних товариств
A178: 5033 | B178: Забезпечення підготовки спортсменів школами вищої спортивної майстерності
A179: 5040 | B179: Підтримка і розвиток спортивної інфраструктури
A180: 5041 | B180: Утримання та фінансова підтримка спортивних споруд
A181: 5042 | B181: Фінансова підтримка спортивних споруд, які належать громадським об'єднанням фізкультурно-спортивної спрямованості
A182: 5043 | B182: Створення нових, будівельно-ремонтні роботи існуючих палаців спорту та завершення розпочатих у попередньому періоді робіт з будівництва/реконструкції палаців спорту
A183: 5044 | B183: Будівництво сучасного біатлонного комплексу в с. Поляниця Яремчанської міської ради Івано-Франківської області
A184: 5045 | B184: Будівництво мультифункціональних майданчиків для занять ігровими видами спорту
A185: 5046 | B185: Будівництво нових, реконструкція та капітальний ремонт існуючих спортивних п'ятдесятиметрових і двадцятип'ятиметрових басейнів
A186: 5047 | B186: Реконструкція спортивного комплексу "Металург" комунального позашкільного навчального закладу "Дитячо-юнацька спортивна школа N 1" Криворізької міської ради
A187: 5050 | B187: Підтримка фізкультурно-спортивного руху
A188: 5051 | B188: Фінансова підтримка регіональних всеукраїнських об'єднань фізкультурно-спортивної спрямованості для проведення навчально-тренувальної та спортивної роботи
A189: 5052 | B189: Фінансова підтримка регіональних осередків всеукраїнських об'єднань фізкультурно-спортивної спрямованості у здійсненні фізкультурно-масових заходів серед населення регіону
A190: 5053 | B190: Фінансова підтримка на утримання місцевих осередків (рад) всеукраїнських об'єднань фізкультурно-спортивної спрямованості
A191: 5060 | B191: Інші заходи з розвитку фізичної культури та спорту
A192: 5061 | B192: Забезпечення діяльності місцевих центрів фізичного здоров'я населення "Спорт для всіх" та проведення фізкультурно-масових заходів серед населення регіону
A193: 5062 | B193: Підтримка спорту вищих досягнень та організацій, які здійснюють фізкультурно-спортивну діяльність в регіоні
A194: 5063 | B194: Забезпечення діяльності централізованої бухгалтерії
A195: 6000 | B195: Житлово-комунальне господарство
A196: 6010 | B196: Утримання та ефективна експлуатація об'єктів житлово-комунального господарства
A197: 6011 | B197: Експлуатація та технічне обслуговування житлового фонду
A198: 6012 | B198: Забезпечення діяльності з виробництва, транспортування, постачання теплової енергії
A199: 6013 | B199: Забезпечення діяльності водопровідно-каналізаційного господарства
A200: 6014 | B200: Забезпечення збору та вивезення сміття і відходів
... 243 more rows

Sheet Заполнить
A2: Назва установи | B2: Підліський ліцей Загвіздянської сільської ради
A3: Код за ЭДРПОУ | B3: 20562786
A4: найменування міста, району, області | B4: с. Підлісся, Івано-Франківський район, Івано-Франківська область
B5: =IF(B6=B7,1,2) -> 2 | C5: 1 - державний, 2 - місцевий
A6: вид бюджету | B6: Місцевий
B7: Державний
B8: Місцевий
A11: Власне ім’я ПРІЗВИЩЕ директор ліцею | B11: Андрій Пастернак
A12: Власне ім’я ПРІЗВИЩЕ бухгалтер ліцею | B12: Дмитро Шкаврітко
A14: Посада Затверджуючого | B14: Сільський голова
A15: Власне ім’я ПРІЗВИЩЕ керівника хто ЗАТВЕРДЖУЄ | B15: Володимир Ружанський
A16: (__________________ 20__ р.) ЗАТВЕРДЖЕННЯ | B16: 28 січня 2021 р. | F16: приклад: 15 січня 2021 р.
A17: (__________________ 20__ р.) ПІДПИСАННЯ | B17: 28 січня 2021 р. | F17: приклад: 15 січня 2020 р.
A21: Код та назва відомчої класифікації місцевий | B21: 01 | C21: =VLOOKUP(B21,'ДовидникКВК(месн)'!A:B,2,FALSE) -> Апарат (секретаріат) місцевої ради (Верховної Ради Автономної Республіки Крим, обласних, Київської та Севастопольської міських рад, районних рад і рад міст обла | J21: сюда вписать назву КВК
A22: Код відомчої класифікації для Держбюджету | B22: 350 | C22: =VLOOKUP(Заполнить!B22,'ДовидникКВК(ГОС)'!A:B,2,FALSE) -> Міністерство фінансів України
A23: Код програмної (державний) або ТПКВКМБ / ТКВКБМС (місцевий) | B23: 0111021 | C23: =IF(B5=1,VLOOKUP(Заполнить!B23,ДовидникКПК!B:C,2,FALSE),C25) -> Надання загальної середньої освіти закладами загальної середньої освіти
C25: =VLOOKUP(B26,КПКВМБ!A:B,2,FALSE) -> Надання загальної середньої освіти закладами загальної середньої освіти
A26: ТПКВКМБ / ТКВКБМС | B26: =RIGHT(B23,4) -> 1021

Sheet кошторис
B1: ЗАТВЕРДЖЕНО Наказ Міністерства фінансів України 28 січня 2002 року № 57 (у редакції наказу Міністерства фінансів України 04.12.2015 № 1118)
B4: =CONCATENATE("Затверджений у сумі ",СумаПрописом(E50)," ",E50," грн.") -> Затверджений у сумі Два мiльйони вiсiмсот шiстдесят двi тисячi три гривнi 00 копiйок 2862003 грн.
B6: (сума словами і цифрами)
B7: =Заполнить!$B$14 -> Сільський голова
B8: (посада)
D9: =Заполнить!$B$15 -> Володимир Ружанський
B10: (підпис)
B11: =Заполнить!$B$16 -> 28 січня 2021 р.
E12: М.П.
A14: КОШТОРИС на 2021 рік
A15: _______________________________________
A16: (індивідуальний, зведений)
A17: =CONCATENATE(Заполнить!$B$3," ",Заполнить!$B$2) -> 20562786 Підліський ліцей Загвіздянської сільської ради
A18: (код за ЄДРПОУ та найменування бюджетної установи)
A19: =Заполнить!$B$4 -> с. Підлісся, Івано-Франківський район, Івано-Франківська область
A20: (найменування міста, району, області)
A21: =CONCATENATE("Вид бюджету ",IF(Заполнить!$B$5=1,"ДЕРЖАВНИЙ","МІСЦЕВИЙ")) -> Вид бюджету МІСЦЕВИЙ
A22: =IF(Заполнить!B5=1,CONCATENATE("код та назва відомчої класифікації видатків та кредитування бюджету ",Заполнить!$B$22," ",Заполнить!$C$22),CONCATENATE("код та назва відомчої класифікації видатків та кредитування бюджету ",Заполнить!$B$21," ",Заполнить!$C$21)) -> код та назва відомчої класифікації видатків та кредитування бюджету 01 Апарат (секретаріат) місцевої ради (Верховної Ради Автономної Республіки Крим, обласних, Київської та Севастопольської міських рад, районних рад і рад міст обла
A23: =IF(Заполнить!$B$5=1,CONCATENATE("код та назва програмної класифікації видатків та кредитування державного бюджету ",Заполнить!$B$23," ",Заполнить!$C$23),CONCATENATE("код та назва програмної класифікації видатків та кредитування державного бюджету ")) -> код та назва програмної класифікації видатків та кредитування державного бюджету
A24: =IF(Заполнить!$B$5=2,CONCATENATE("(код та назва програмної класифікації видатків та кредитування місцевих бюджетів ","(код та назва Типової програмної класифікації видатків та кредитування місцевих бюджетів) ",Заполнить!$B$23," ",Заполнить!$C$23,")"),CONCATENATE("(код та назва програмної класифікації видатків та кредитування місцевих бюджетів ","(код та назва Типової програмної класифікації видатків та кредитування місцевих бюджетів ___________",")")) -> (код та назва програмної класифікації видатків та кредитування місцевих бюджетів (код та назва Типової програмної класифікації видатків та кредитування місцевих бюджетів) 0111021 Надання загальної середньої освіти закладами загальної середньої освіти)
E26: (грн)
A27: Найменування | B27: Код | C27: Усього на рік | E27: РАЗОМ
C28: Загальний фонд | D28: Спеціальний фонд
A29: 1 | B29: 2 | C29: 3 | D29: 4 | E29: 5
A30: НАДХОДЖЕННЯ - усього | B30: х | C30: =C31 -> 2752003 | D30: =D32 -> 110000 | E30: =C30+D30 -> 2862003
A31: Надходження коштів із загального фонду бюджету | B31: х | C31: =C50 -> 2752003 | D31: х | E31: =C31 -> 2752003
A32: Надходження коштів із спеціального фонду бюджету, у тому числі: | B32: х | C32: 0 | D32: =D33+D39 -> 110000 | E32: =D32 -> 110000
A33: Надходження від плати за послуги, що надаються бюджетними установами згідно із законодавством | B33: 25010000 | C33: х | D33: =SUM(D34:D37) -> 110000 | E33: =D33 -> 110000
A34: Плата за послуги, що надаються бюджетними установами згідно з їх основною діяльністю | B34: 25010100 | C34: Х | D34: 110000 | E34: 110000
A35: Надходження бюджетних установ від додаткової (господарської) діяльності | B35: 25010200 | C35: Х | D35: 0 | E35: 0
A36: Плата за оренду майна бюджетних установ, що здійснюється відповідно до Закону України "Про оренду державного та комунального майна" | B36: 25010300 | C36: Х | D36: 0 | E36: 0
A37: Надходження бюджетних установ від реалізації в установленому порядку майна (крім нерухомого майна) | B37: 25010400 | C37: Х | D37: 0 | E37: 0
A38: (розписати за підгрупами) | D38: 0 | E38: 0
A39: Інші джерела власних надходжень бюджетних установ | B39: 25020000 | C39: х | D39: =SUM(D40:D42) -> 0 | E39: 0
A40: Благодійні внески, гранти та дарунки | B40: 25020100 | C40: Х | D40: 0 | E40: 0
A41: Надходження, що отримують бюджетні установи від підприємств, організацій, фізичних осіб та від інших бюджетних установ для виконання цільових заходів, у тому числі заходів з відчуження для суспільних потреб земельних ділянок та розміщених на них інших об'єктів нерухомого майна, що перебувають у приватній власності фізичних або юридичних осіб, | B41: 25020200 | C41: Х | D41: 0 | E41: 0
A42: Надходження, що отримують державні і комунальні заклади професійної (професійно-технічної), фахової передвищої та вищої освіти від розміщення на депозитах тимчасово вільних бюджетних коштів, отриманих за надання платних послуг, якщо таким закладам законом надано відповідне право; надходження, що отримують державні і комунальні заклади фахової передвищої та вищої освіти, наукові установи та заклади культури як відсотки, нараховані на залишок коштів на поточних рахунках, відкритих у банках державного сектору для розміщення власних надходжень, отриманих як плата за послуги, що надаються ними згідно з основною діяльністю, благодійні внески та гранти | B42: 25020300 | C42: Х | D42: 0 | E42: 0
A44: (розписати за підгрупами) | D44: 0 | E44: 0
A45: інші надходження, у тому числі: | C45: х | D45: 0 | E45: 0
A46: інші доходи (розписати за кодами класифікації доходів бюджету) | C46: х | D46: 0 | E46: 0
A47: фінансування (розписати за кодами класифікації фінансування бюджету за типом боргового зобов'язання) | C47: х | D47: 0 | E47: 0
A48: повернення кредитів до бюджету (розписати за кодами програмної класифікації видатків та кредитування бюджету, класифікації кредитування бюджету) | C48: х
C49: х | D49: ** | E49: **
A50: ВИДАТКИ ТА НАДАННЯ КРЕДИТІВ - усього | B50: х | C50: =C51+C87+C107+C108+C112 -> 2752003 | D50: =D51+D87+D107+D108+D112 -> 110000 | E50: =SUM(C50:D50) -> 2862003
A51: =VLOOKUP(B51,ДовКЕКВ!A:B,2,FALSE) -> Поточні видатки | B51: 2000 | C51: =C52+C58+C75+C78+C82+C86 -> 2752003 | D51: =D52+D58+D75+D78+D82+D86 -> 110000 | E51: 2862003
A52: =VLOOKUP(B52,ДовКЕКВ!A:B,2,FALSE) -> Оплата праці і нарахування на заробітну плату | B52: 2100 | C52: =C53+C57 -> 1723003 | D52: =D53+D57 -> 0 | E52: 1723003
A53: =VLOOKUP(B53,ДовКЕКВ!A:B,2,FALSE) -> Оплата праці | B53: 2110 | C53: =SUM(C54:C56) -> 1412297 | D53: =SUM(D54:D56) -> 0 | E53: 1412297
A54: =VLOOKUP(B54,ДовКЕКВ!A:B,2,FALSE) -> Заробітна плата | B54: 2111 | C54: 1412297 | D54: 0 | E54: 1412297
A55: =VLOOKUP(B55,ДовКЕКВ!A:B,2,FALSE) -> Грошове забезпечення військовослужбовців | B55: 2112 | C55: 0 | D55: 0 | E55: 0
A56: =VLOOKUP(B56,ДовКЕКВ!A:B,2,FALSE) -> Суддівська винагорода | B56: 2113 | C56: 0 | D56: 0 | E56: 0
A57: =VLOOKUP(B57,ДовКЕКВ!A:B,2,FALSE) -> Нарахування на оплату праці | B57: 2120 | C57: 310706 | D57: 0 | E57: 310706
A58: =VLOOKUP(B58,ДовКЕКВ!A:B,2,FALSE) -> Використання товарів і послуг | B58: 2200 | C58: =SUM(C59:C65)+C72 -> 1017000 | D58: =SUM(D59:D65)+D72 -> 110000 | E58: 1127000
A59: =VLOOKUP(B59,ДовКЕКВ!A:B,2,FALSE) -> Предмети, матеріали, обладнання та інвентар | B59: 2210 | C59: 260000 | D59: 0 | E59: 260000
A60: =VLOOKUP(B60,ДовКЕКВ!A:B,2,FALSE) -> Медикаменти та перев'язувальні матеріали | B60: 2220 | C60: 0 | D60: 0 | E60: 0
A61: =VLOOKUP(B61,ДовКЕКВ!A:B,2,FALSE) -> Продукти харчування | B61: 2230 | C61: 89000 | D61: 110000 | E61: 199000
A62: =VLOOKUP(B62,ДовКЕКВ!A:B,2,FALSE) -> Оплата послуг (крім комунальних) | B62: 2240 | C62: 60000 | D62: 0 | E62: 60000
A63: =VLOOKUP(B63,ДовКЕКВ!A:B,2,FALSE) -> Видатки на відрядження | B63: 2250 | C63: 10000 | D63: 0 | E63: 10000
A64: =VLOOKUP(B64,ДовКЕКВ!A:B,2,FALSE) -> Видатки та заходи спеціального призначення | B64: 2260 | C64: 0 | D64: 0 | E64: 0
A65: =VLOOKUP(B65,ДовКЕКВ!A:B,2,FALSE) -> Оплата комунальних послуг та енергоносіїв | B65: 2270 | C65: =SUM(C66:C71) -> 598000 | D65: =SUM(D66:D71) -> 0 | E65: =SUM(C65:D65) -> 598000
A66: =VLOOKUP(B66,ДовКЕКВ!A:B,2,FALSE) -> Оплата теплопостачання | B66: 2271 | C66: 500000 | D66: 0 | E66: 500000
A67: =VLOOKUP(B67,ДовКЕКВ!A:B,2,FALSE) -> Оплата водопостачання та водовідведення | B67: 2272 | C67: 0 | D67: 0 | E67: 0
A68: =VLOOKUP(B68,ДовКЕКВ!A:B,2,FALSE) -> Оплата електроенергії | B68: 2273 | C68: 98000 | D68: 0 | E68: 98000
A69: =VLOOKUP(B69,ДовКЕКВ!A:B,2,FALSE) -> Оплата природного газу | B69: 2274 | C69: 0 | D69: 0 | E69: 0
A70: =VLOOKUP(B70,ДовКЕКВ!A:B,2,FALSE) -> Оплата інших енергоносіїв та інших комунальних послуг | B70: 2275 | C70: 0 | D70: 0 | E70: 0
A71: =VLOOKUP(B71,ДовКЕКВ!A:B,2,FALSE) -> Оплата енергосервісу | B71: 2276 | C71: 0 | D71: 0 | E71: =SUM(C71:D71) -> 0
A72: =VLOOKUP(B72,ДовКЕКВ!A:B,2,FALSE) -> Дослідження і розробки, окремі заходи по реалізації державних (регіональних) програм | B72: 2280 | C72: =SUM(C73:C74) -> 0 | D72: =SUM(D73:D74) -> 0 | E72: 0
A73: =VLOOKUP(B73,ДовКЕКВ!A:B,2,FALSE) -> Дослідження і розробки, окремі заходи розвитку по реалізації державних (регіональних) програм | B73: 2281 | C73: 0 | D73: 0 | E73: 0
A74: =VLOOKUP(B74,ДовКЕКВ!A:B,2,FALSE) -> Окремі заходи по реалізації державних (регіональних) програм, не віднесені до заходів розвитку | B74: 2282 | C74: 0 | D74: 0 | E74: 0
A75: =VLOOKUP(B75,ДовКЕКВ!A:B,2,FALSE) -> Обслуговування боргових зобов'язань | B75: 2400 | C75: =SUM(C76:C77) -> 0 | D75: =SUM(D76:D77) -> 0 | E75: 0
A76: =VLOOKUP(B76,ДовКЕКВ!A:B,2,FALSE) -> Обслуговування внутрішніх боргових зобов'язань | B76: 2410 | C76: 0 | D76: 0 | E76: =SUM(C76:D76) -> 0
A77: =VLOOKUP(B77,ДовКЕКВ!A:B,2,FALSE) -> Обслуговування зовнішніх боргових зобов'язань | B77: 2420 | C77: 0 | D77: 0 | E77: =SUM(C77:D77) -> 0
A78: =VLOOKUP(B78,ДовКЕКВ!A:B,2,FALSE) -> Поточні трансферти | B78: 2600 | C78: =SUM(C79:C81) -> 0 | D78: =SUM(D79:D81) -> 0 | E78: =SUM(C78:D78) -> 0
A79: =VLOOKUP(B79,ДовКЕКВ!A:B,2,FALSE) -> Субсидії та поточні трансферти підприємствам (установам, організаціям) | B79: 2610 | C79: 0 | D79: 0 | E79: 0
A80: =VLOOKUP(B80,ДовКЕКВ!A:B,2,FALSE) -> Поточні трансферти органам державного управління інших рівнів | B80: 2620 | C80: 0 | D80: 0 | E80: 0
A81: =VLOOKUP(B81,ДовКЕКВ!A:B,2,FALSE) -> Поточні трансферти урядам іноземних держав та міжнародним організаціям | B81: 2630 | C81: - | D81: 0 | E81: 0
A82: =VLOOKUP(B82,ДовКЕКВ!A:B,2,FALSE) -> Соціальне забезпечення | B82: 2700 | C82: =SUM(C83:C85) -> 11000 | D82: =SUM(D83:D85) -> 0 | E82: 11000
A83: =VLOOKUP(B83,ДовКЕКВ!A:B,2,FALSE) -> Виплата пенсій і допомоги | B83: 2710 | C83: 0 | D83: 0 | E83: 0
A84: =VLOOKUP(B84,ДовКЕКВ!A:B,2,FALSE) -> Стипендії | B84: 2720 | C84: 0 | D84: 0 | E84: 0
A85: =VLOOKUP(B85,ДовКЕКВ!A:B,2,FALSE) -> Інші виплати населенню | B85: 2730 | C85: 11000 | D85: 0 | E85: 11000
A86: =VLOOKUP(B86,ДовКЕКВ!A:B,2,FALSE) -> Інші поточні видатки | B86: 2800 | C86: 1000 | E86: 1000
A87: =VLOOKUP(B87,ДовКЕКВ!A:B,2,FALSE) -> Капітальні видатки | B87: 3000 | C87: =C88+C102 -> 0 | D87: =D88+D102 -> 0 | E87: 0
A88: =VLOOKUP(B88,ДовКЕКВ!A:B,2,FALSE) -> Придбання основного капіталу | B88: 3100 | C88: =C89+C90+C93+C96+C100+C101 -> 0 | D88: =D89+D90+D93+D96+D100+D101 -> 0 | E88: 0
A89: =VLOOKUP(B89,ДовКЕКВ!A:B,2,FALSE) -> Придбання обладнання і предметів довгострокового користування | B89: 3110 | C89: 0 | D89: 0 | E89: 0
A90: =VLOOKUP(B90,ДовКЕКВ!A:B,2,FALSE) -> Капітальне будівництво (придбання) | B90: 3120 | C90: =SUM(C91:C92) -> 0 | D90: =SUM(D91:D92) -> 0 | E90: 0
A91: =VLOOKUP(B91,ДовКЕКВ!A:B,2,FALSE) -> Капітальне будівництво (придбання) житла | B91: 3121 | C91: 0 | D91: 0 | E91: 0
A92: =VLOOKUP(B92,ДовКЕКВ!A:B,2,FALSE) -> Капітальне будівництво (придбання) інших об'єктів | B92: 3122 | C92: 0 | D92: 0 | E92: 0
A93: =VLOOKUP(B93,ДовКЕКВ!A:B,2,FALSE) -> Капітальний ремонт | B93: 3130 | C93: =SUM(C94:C95) -> 0 | D93: =SUM(D94:D95) -> 0 | E93: 0
A94: =VLOOKUP(B94,ДовКЕКВ!A:B,2,FALSE) -> Капітальний ремонт житлового фонду (приміщень) | B94: 3131 | C94: 0 | D94: 0 | E94: 0
A95: =VLOOKUP(B95,ДовКЕКВ!A:B,2,FALSE) -> Капітальний ремонт інших об'єктів | B95: 3132 | C95: 0 | D95: 0 | E95: 0
A96: =VLOOKUP(B96,ДовКЕКВ!A:B,2,FALSE) -> Реконструкція та реставрація | B96: 3140 | C96: =SUM(C97:C99) -> 0 | D96: =SUM(D97:D99) -> 0 | E96: =SUM(C96:D96) -> 0
A97: =VLOOKUP(B97,ДовКЕКВ!A:B,2,FALSE) -> Реконструкція житлового фонду (приміщень) | B97: 3141 | C97: 0 | D97: 0 | E97: =SUM(C97:D97) -> 0
A98: =VLOOKUP(B98,ДовКЕКВ!A:B,2,FALSE) -> Реконструкція та реставрація інших об'єктів | B98: 3142 | C98: 0 | D98: 0 | E98: 0
A99: =VLOOKUP(B99,ДовКЕКВ!A:B,2,FALSE) -> Реставрація пам'яток культури, історії та архітектури | B99: 3143 | C99: 0 | D99: 0 | E99: 0
A100: =VLOOKUP(B100,ДовКЕКВ!A:B,2,FALSE) -> Створення державних запасів і резервів | B100: 3150 | C100: 0 | D100: 0 | E100: 0
A101: =VLOOKUP(B101,ДовКЕКВ!A:B,2,FALSE) -> Придбання землі та нематеріальних активів | B101: 3160 | C101: 0 | D101: 0 | E101: 0
A102: =VLOOKUP(B102,ДовКЕКВ!A:B,2,FALSE) -> Капітальні трансферти | B102: 3200 | C102: =SUM(C103:C106) -> 0 | D102: =SUM(D103:D106) -> 0 | E102: 0
A103: =VLOOKUP(B103,ДовКЕКВ!A:B,2,FALSE) -> Капітальні трансферти підприємствам (установам, організаціям) | B103: 3210 | C103: 0 | D103: 0 | E103: 0
A104: =VLOOKUP(B104,ДовКЕКВ!A:B,2,FALSE) -> Капітальні трансферти органам державного управління інших рівнів | B104: 3220 | C104: 0 | D104: 0 | E104: 0
A105: =VLOOKUP(B105,ДовКЕКВ!A:B,2,FALSE) -> Капітальні трансферти урядам іноземних держав та міжнародним організаціям | B105: 3230
A106: =VLOOKUP(B106,ДовКЕКВ!A:B,2,FALSE) -> Капітальні трансферти населенню | B106: 3240 | C106: 0 | D106: 0 | E106: 0
A108: =VLOOKUP(B108,ДовКреди!A:B,2,FALSE) -> Надання внутрішніх кредитів | B108: 4110 | C108: =SUM(C109:C111) -> 0 | D108: =SUM(D109:D111) -> 0
A109: =VLOOKUP(B109,ДовКреди!A:B,2,FALSE) -> Надання кредитів органам державного управління інших рівнів | B109: 4111 | C109: 0 | D109: 0 | E109: 0
A110: =VLOOKUP(B110,ДовКреди!A:B,2,FALSE) -> Надання кредитів підприємствам, установам, організаціям | B110: 4112 | C110: 0 | D110: 0 | E110: 0
A111: =VLOOKUP(B111,ДовКреди!A:B,2,FALSE) -> Надання інших внутрішніх кредитів | B111: 4113 | C111: 0 | D111: 0 | E111: 0
A112: =VLOOKUP(B112,ДовКреди!A:B,2,FALSE) -> Надання зовнішніх кредитів | B112: 4210 | C112: 0 | D112: 0 | E112: =SUM(C112:D112) -> 0
A113: =VLOOKUP(B113,ДовКЕКВ!A:B,2,FALSE) -> Нерозподілені видатки | B113: 9000 | C113: 0 | D113: 0 | E113: =SUM(C113:D113) -> 0
A115: Директор ліцею | D115: =Заполнить!B11 -> Андрій Пастернак
B116: (підпис)
A117: Бухгалтер ліцею | D117: =Заполнить!B12 -> Дмитро Шкаврітко
B118: (підпис)
A119: =Заполнить!$B$17 -> 28 січня 2021 р.
A121: М.П.***
A123: ** Сума проставляється за кодом відповідно до класифікації кредитування бюджету та не враховується у рядку "НАДХОДЖЕННЯ - усього". *** Заповнюється розпорядниками нижчого рівня, крім головних розпорядників та національних закладів вищої освіти, яким безпосередньо встановлені призначення у державному бюджеті.

Sheet план скорочений
J1: ЗАТВЕРДЖЕНО Наказ Міністерства фінансів України 28 січня 2002 року № 57 (у редакції наказу Міністерства фінансів України від 26 листопада 2012 року № 1220)
J5: =CONCATENATE("Затверджений у сумі ",СумаПрописом(O35)," ",O35," грн.") -> Затверджений у сумі Два мiльйони сiмсот п`ятдесят двi тисячi три гривнi 00 копiйок 2752003 грн.
R6: ф++
J7: (сума словами і цифрами)
J8: =Заполнить!$B$14 -> Сільський голова
J9: (посада)
L10: =Заполнить!$B$15 -> Володимир Ружанський
J11: (підпис)
J12: =Заполнить!$B$16 -> 28 січня 2021 р.
N13: М.П.
A14: ПЛАН АСИГНУВАНЬ (ЗА ВИНЯТКОМ НАДАННЯ КРЕДИТІВ З БЮДЖЕТУ) ЗАГАЛЬНОГО ФОНДУ БЮДЖЕТУ
A15: НА 2021 РІК
A16: =CONCATENATE(Заполнить!$B$3," ",Заполнить!$B$2) -> 20562786 Підліський ліцей Загвіздянської сільської ради
A17: (код за ЄДРПОУ та найменування бюджетної установи)
A18: =Заполнить!$B$4 -> с. Підлісся, Івано-Франківський район, Івано-Франківська область
A19: (найменування міста, району, області)
A20: =CONCATENATE("Вид бюджету ",IF(Заполнить!$B$5=1,"ДЕРЖАВНИЙ","МІСЦЕВИЙ")) -> Вид бюджету МІСЦЕВИЙ
A21: =IF(Заполнить!B5=1,CONCATENATE("код та назва відомчої класифікації видатків та кредитування бюджету ",Заполнить!$B$22," ",Заполнить!$C$22),CONCATENATE("код та назва відомчої класифікації видатків та кредитування бюджету ",Заполнить!$B$21," ",Заполнить!$C$21)) -> код та назва відомчої класифікації видатків та кредитування бюджету 01 Апарат (секретаріат) місцевої ради (Верховної Ради Автономної Республіки Крим, обласних, Київської та Севастопольської міських рад, районних рад і рад міст обла
A22: =IF(Заполнить!$B$5=1,CONCATENATE("код та назва програмної класифікації видатків та кредитування державного бюджету ",Заполнить!$B$23," ",Заполнить!$C$23),CONCATENATE("код та назва програмної класифікації видатків та кредитування державного бюджету ")) -> код та назва програмної класифікації видатків та кредитування державного бюджету
A23: =IF(Заполнить!$B$5=2,CONCATENATE("(код та назва програмної класифікації видатків та кредитування місцевих бюджетів ","(код та назва Типової програмної класифікації видатків та кредитування місцевих бюджетів) ",Заполнить!$B$23," ",Заполнить!$C$23,")"),CONCATENATE("(код та назва програмної класифікації видатків та кредитування місцевих бюджетів ","(код та назва Типової програмної класифікації видатків та кредитування місцевих бюджетів ___________",")")) -> (код та назва програмної класифікації видатків та кредитування місцевих бюджетів (код та назва Типової програмної класифікації видатків та кредитування місцевих бюджетів) 0111021 Надання загальної середньої освіти закладами загальної середньої освіти)
O24: (грн)
A25: Найменування | B25: КЕКВ | C25: Січень | D25: Лютий | E25: Березень | F25: Квітень | G25: Травень | H25: Червень | I25: Липень | J25: Серпень | K25: Вересень | L25: Жовтень | M25: Листопад | N25: Грудень | O25: Разом на рік
A26: 1 | B26: 2 | C26: 3 | D26: 4 | E26: 5 | F26: 6 | G26: 7 | H26: 8 | I26: 9 | J26: 10 | K26: 11 | L26: 12 | M26: 13 | N26: 14 | O26: 15
A27: =VLOOKUP(B27,ДовКЕКВ!A:B,2,FALSE) -> Оплата праці | B27: 2110 | C27: 120000 | D27: 116000 | E27: 116000 | F27: 114000 | G27: 102000 | H27: 204000 | I27: 80000 | J27: 102000 | K27: 111000 | L27: 114000 | M27: 117000 | N27: 116297 | O27: =SUM(C27:N27) -> 1412297
A28: =VLOOKUP(B28,ДовКЕКВ!A:B,2,FALSE) -> Нарахування на оплату праці | B28: 2120 | C28: 26400 | D28: 25520 | E28: 25520 | F28: 25080 | G28: 22440 | H28: 44880 | I28: 17600 | J28: 22440 | K28: 24420 | L28: 25080 | M28: 25740 | N28: 25586 | O28: =SUM(C28:N28) -> 310706
A29: =VLOOKUP(B29,ДовКЕКВ!A:B,2,FALSE) -> Медикаменти та перев'язувальні матеріали | B29: 2220 | O29: =SUM(C29:N29) -> 0
A30: =VLOOKUP(B30,ДовКЕКВ!A:B,2,FALSE) -> Продукти харчування | B30: 2230 | C30: 8900 | D30: 8900 | E30: 8900 | F30: 8900 | G30: 8900 | H30: 8900 | I30: 0 | J30: 0 | K30: 8900 | L30: 8900 | M30: 8900 | N30: 8900 | O30: 89000
A31: =VLOOKUP(B31,ДовКЕКВ!A:B,2,FALSE) -> Оплата комунальних послуг та енергоносіїв | B31: 2270 | C31: 115000 | D31: 110000 | E31: 79000 | F31: 59000 | G31: 9000 | H31: 5000 | I31: 5000 | J31: 5000 | K31: 8000 | L31: 18000 | M31: 108000 | N31: 77000 | O31: 598000
A32: =VLOOKUP(B32,ДовКЕКВ!A:B,2,FALSE) -> Дослідження і розробки, окремі заходи по реалізації державних (регіональних) програм | B32: 2280 | O32: =SUM(C32:N32) -> 0
A33: Соціальне забезпечення | B33: 2700 | C33: 0 | D33: 0 | E33: 0 | F33: 0 | G33: 11000 | H33: 0 | I33: 0 | J33: 0 | K33: 0 | L33: 0 | M33: 0 | N33: 0 | O33: 11000
A34: Інші видатки | B34: 5000 | C34: =20968+5000+1000 -> 26968 | D34: =20000+5000+1000+250 -> 26250 | E34: =20000+5000+1000 -> 26000 | F34: =20000+5000+1000 -> 26000 | G34: =250+39032+5000+1000+11000 -> 56282 | H34: 1000 | I34: =20000+10000 -> 30000 | J34: =250+20000+5000 -> 25250 | K34: =20000+5000+0+1000 -> 26000 | L34: =20000+5000+1000 -> 26000 | M34: =250+20000+5000+1000 -> 26250 | N34: =40000+5000+1000 -> 46000 | O34: =SUM(C34:N34) -> 342000
A35: УСЬОГО | C35: =C27+C28+C30+C31+C34 -> 297268 | D35: 286670 | E35: 255420 | F35: 232980 | G35: 198622 | H35: 263780 | I35: 132600 | J35: 154690 | K35: 178320 | L35: 191980 | M35: 285890 | N35: 273783 | O35: =SUM(C35:N35) -> 2752003
A39: Директор ліцею | I39: =Заполнить!$B$11 -> Андрій Пастернак
F40: (підпис)
A41: Бухгалтер ліцею | I41: =Заполнить!$B$12 -> Дмитро Шкаврітко
F42: (підпис)
A43: М.П.**
A44: =Заполнить!$B$17 -> 28 січня 2021 р.
A46: * Технічний код, який включає в себе всі коди економічної класифікації видатків бюджету, крім тих, що виділені окремо. ** Заповнюється розпорядниками нижчого рівня, крім головних розпорядників та національних закладів вищої освіти, яким безпосередньо встановлені призначення у державному бюджеті.

Sheet план
J1: ЗАТВЕРДЖЕНО Наказ Міністерства фінансів України 28 січня 2002 року № 57 (у редакції наказу Міністерства фінансів України від 26 листопада 2012 року № 1220)
J5: =CONCATENATE("Затверджений у сумі ",СумаПрописом(O41)," ",O41," грн.") -> Затверджений у сумі Два мiльйони сiмсот п`ятдесят двi тисячi три гривнi 00 копiйок 2752003 грн.
J7: (сума словами і цифрами)
J8: =Заполнить!$B$14 -> Сільський голова
J9: (посада)
L10: =Заполнить!$B$15 -> Володимир Ружанський
J11: (підпис)
J12: =Заполнить!$B$16 -> 28 січня 2021 р.
N13: М.П.
A14: ПЛАН АСИГНУВАНЬ (ЗА ВИНЯТКОМ НАДАННЯ КРЕДИТІВ З БЮДЖЕТУ) ЗАГАЛЬНОГО ФОНДУ БЮДЖЕТУ
A15: НА 2021 РІК
A16: =CONCATENATE(Заполнить!$B$3," ",Заполнить!$B$2) -> 20562786 Підліський ліцей Загвіздянської сільської ради
A17: (код за ЄДРПОУ та найменування бюджетної установи)
A18: =Заполнить!$B$4 -> с. Підлісся, Івано-Франківський район, Івано-Франківська область
A19: (найменування міста, району, області)
A20: =CONCATENATE("Вид бюджету ",IF(Заполнить!$B$5=1,"ДЕРЖАВНИЙ","МІСЦЕВИЙ")) -> Вид бюджету МІСЦЕВИЙ
A21: =IF(Заполнить!B5=1,CONCATENATE("код та назва відомчої класифікації видатків та кредитування бюджету ",Заполнить!$B$22," ",Заполнить!$C$22),CONCATENATE("код та назва відомчої класифікації видатків та кредитування бюджету ",Заполнить!$B$21," ",Заполнить!$C$21)) -> код та назва відомчої класифікації видатків та кредитування бюджету 01 Апарат (секретаріат) місцевої ради (Верховної Ради Автономної Республіки Крим, обласних, Київської та Севастопольської міських рад, районних рад і рад міст обла
A22: =IF(Заполнить!$B$5=1,CONCATENATE("код та назва програмної класифікації видатків та кредитування державного бюджету ",Заполнить!$B$23," ",Заполнить!$C$23),CONCATENATE("код та назва програмної класифікації видатків та кредитування державного бюджету ")) -> код та назва програмної класифікації видатків та кредитування державного бюджету
A23: =IF(Заполнить!$B$5=2,CONCATENATE("(код та назва програмної класифікації видатків та кредитування місцевих бюджетів ","(код та назва Типової програмної класифікації видатків та кредитування місцевих бюджетів) ",Заполнить!$B$23," ",Заполнить!$C$23,")"),CONCATENATE("(код та назва програмної класифікації видатків та кредитування місцевих бюджетів ","(код та назва Типової програмної класифікації видатків та кредитування місцевих бюджетів ___________",")")) -> (код та назва програмної класифікації видатків та кредитування місцевих бюджетів (код та назва Типової програмної класифікації видатків та кредитування місцевих бюджетів) 0111021 Надання загальної середньої освіти закладами загальної середньої освіти)
O24: (грн)
A25: Найменування | B25: КЕКВ | C25: Січень | D25: Лютий | E25: Березень | F25: Квітень | G25: Травень | H25: Червень | I25: Липень | J25: Серпень | K25: Вересень | L25: Жовтень | M25: Листопад | N25: Грудень | O25: Разом на рік
A26: 1 | B26: 2 | C26: 3 | D26: 4 | E26: 5 | F26: 6 | G26: 7 | H26: 8 | I26: 9 | J26: 10 | K26: 11 | L26: 12 | M26: 13 | N26: 14 | O26: 15
A27: =VLOOKUP(B27,ДовКЕКВ!A:B,2,FALSE) -> Оплата праці | B27: 2110 | C27: 120000 | D27: 116000 | E27: 116000 | F27: 114000 | G27: 102000 | H27: 204000 | I27: 80000 | J27: 102000 | K27: 111000 | L27: 114000 | M27: 117000 | N27: 116297 | O27: =SUM(C27:N27) -> 1412297
A28: =VLOOKUP(B28,ДовКЕКВ!A:B,2,FALSE) -> Нарахування на оплату праці | B28: 2120 | C28: 26400 | D28: 25520 | E28: 25520 | F28: 25080 | G28: 22440 | H28: 44880 | I28: 17600 | J28: 22440 | K28: 24420 | L28: 25080 | M28: 25740 | N28: 25586 | O28: =SUM(C28:N28) -> 310706
A29: Предмети, матеріали, обладнання та інвентар | B29: 2210 | C29: 20968 | D29: 20000 | E29: 20000 | F29: 20000 | G29: 39032 | I29: 20000 | J29: 20000 | K29: 20000 | L29: 20000 | M29: 20000 | N29: 40000 | O29: =SUM(C29:N29) -> 260000
A30: =VLOOKUP(B30,ДовКЕКВ!A:B,2,FALSE) -> Медикаменти та перев'язувальні матеріали | B30: 2220 | O30: =SUM(C30:N30) -> 0
A31: =VLOOKUP(B31,ДовКЕКВ!A:B,2,FALSE) -> Продукти харчування | B31: 2230 | C31: 8900 | D31: 8900 | E31: 8900 | F31: 8900 | G31: 8900 | H31: 8900 | I31: 0 | J31: 0 | K31: 8900 | L31: 8900 | M31: 8900 | N31: 8900 | O31: 89000
A32: Оплата послуг (крім комунальних) | B32: 2240 | C32: 5000 | D32: 5000 | E32: 5000 | F32: 5000 | G32: 5000 | H32: 0 | I32: 10000 | J32: 5000 | K32: 5000 | L32: 5000 | M32: 5000 | N32: 5000 | O32: =SUM(C32:N32) -> 60000
A33: Видатки на відрядження | B33: 2250 | C33: 1000 | D33: 1000 | E33: 1000 | F33: 1000 | G33: 1000 | H33: 1000 | I33: 0 | J33: 0 | K33: 1000 | L33: 1000 | M33: 1000 | N33: 1000 | O33: =SUM(C33:N33) -> 10000
A34: =VLOOKUP(B34,ДовКЕКВ!A:B,2,FALSE) -> Оплата комунальних послуг та енергоносіїв | B34: 2270 | C34: 115000 | D34: 110000 | E34: 79000 | F34: 59000 | G34: 9000 | H34: 5000 | I34: 5000 | J34: 5000 | K34: 8000 | L34: 18000 | M34: 108000 | N34: 77000 | O34: 598000
A35: Оплата теплопостачання | B35: 2271 | C35: 100000 | D35: 100000 | E35: 70000 | F35: 50000 | G35: 0 | H35: 0 | I35: 0 | J35: 0 | K35: 0 | L35: 10000 | M35: 100000 | N35: 70000 | O35: 500000
A36: Оплата електроенергії | B36: 2273 | C36: 15000 | D36: 10000 | E36: 9000 | F36: 9000 | G36: 9000 | H36: 5000 | I36: 5000 | J36: 5000 | K36: 8000 | L36: 8000 | M36: 8000 | N36: 7000 | O36: 98000
A37: Соціальне забезпечення | B37: 2700 | C37: 0 | D37: 0 | E37: 0 | F37: 0 | G37: 11000 | H37: 0 | I37: 0 | J37: 0 | K37: 0 | L37: 0 | M37: 0 | N37: 0 | O37: 11000
A38: Інші виплати населенню | B38: 2730 | C38: 0 | D38: 0 | E38: 0 | F38: 0 | G38: 11000 | H38: 0 | I38: 0 | J38: 0 | K38: 0 | L38: 0 | M38: 0 | N38: 0 | O38: =SUM(C38:N38) -> 11000
A39: =VLOOKUP(B39,ДовКЕКВ!A:B,2,FALSE) -> Дослідження і розробки, окремі заходи по реалізації державних (регіональних) програм | B39: 2280 | O39: 0
A40: Інші поточні видатки | B40: 2800 | C40: 0 | D40: 250 | E40: 0 | F40: 0 | G40: 250 | H40: 0 | I40: 0 | J40: 250 | K40: 0 | L40: 0 | M40: 250 | N40: 0 | O40: =SUM(C40:N40) -> 1000
A41: УСЬОГО | C41: =C27+C28+C29+C30+C31+C32+C33+C34+C38+C39+C40 -> 297268 | D41: 286670 | E41: 255420 | F41: 232980 | G41: 198622 | H41: 263780 | I41: 132600 | J41: 154690 | K41: 178320 | L41: 191980 | M41: 285890 | N41: 273783 | O41: =SUM(C41:N41) -> 2752003
A45: Директор ліцею | I45: =Заполнить!$B$11 -> Андрій Пастернак
F46: (підпис)
A47: Бухгалтер ліцею | I47: =Заполнить!$B$12 -> Дмитро Шкаврітко
F48: (підпис)
A49: М.П.**
A50: =Заполнить!$B$17 -> 28 січня 2021 р.
A52: * Технічний код, який включає в себе всі коди економічної класифікації видатків бюджету, крім тих, що виділені окремо. ** Заповнюється розпорядниками нижчого рівня, крім головних розпорядників та національних закладів вищої освіти, яким безпосередньо встановлені призначення у державному бюджеті.

Sheet ДовДоходів (hidden)
A1: 10000000 | B1: Податкові надходження
A2: 11000000 | B2: Податки на доходи, податки на прибуток, податки на збільшення ринкової вартості
A3: 11010000 | B3: Податок та збір на доходи фізичних осіб
A4: 11010100 | B4: Податок на доходи фізичних осіб, що сплачується податковими агентами, із доходів платника податку у вигляді заробітної плати
A5: 11010200 | B5: Податок на доходи фізичних осіб з грошового забезпечення, грошових винагород та інших виплат, одержаних військовослужбовцями та особами рядового і начальницького складу, що сплачується податковими агентами
A6: 11010300 | B6: Податок на доходи фізичних осіб із доходів у формі заробітної плати шахтарів-працівників
A7: 11010400 | B7: Податок на доходи фізичних осіб, що сплачується податковими агентами, із доходів платника податку інших ніж заробітна плата
A8: 11010500 | B8: Податок на доходи фізичних осіб, що сплачується фізичними особами за результатами річного декларування
A9: 11010600 | B9: Фіксований податок на доходи фізичних осіб від зайняття підприємницькою діяльністю, нарахований до 1 січня 2012 року
A10: 11010700 | B10: Надходження сум реструктурованої заборгованості зі сплати податку на доходи фізичних осіб
A11: 11010800 | B11: Податок на доходи фізичних осіб із доходу у вигляді процентів
A12: 11010900 | B12: Податок на доходи фізичних осіб із суми пенсійних виплат або щомісячного довічного грошового утримання, що оподатковуються відповідно до підпункту 164.2.19 пункту 164.2 статті 164 Податкового кодексу
A13: 11011000 | B13: Військовий збір
A14: 41031100 | B14: Субвенція з державного бюджету міському бюджету міста Києва на виконання функцій столиці
A15: 11020000 | B15: Податок на прибуток підприємств
A16: 11020100 | B16: Податок на прибуток підприємств і організацій, що перебувають у державній власності
A17: 11020200 | B17: Податок на прибуток підприємств та фінансових установ комунальної власності
A18: 11020300 | B18: Податок на прибуток підприємств, створених за участю іноземних інвесторів
A19: 11020400 | B19: Податок на прибуток від казино, відеосалонів, гральних автоматів, концертно-видовищних заходів
A20: 11020500 | B20: Податок на прибуток іноземних юридичних осіб
A21: 11020600 | B21: Податок на прибуток банківських організацій, включаючи філіали аналогічних організацій, розташованих на території України
A22: 11020700 | B22: Податок на прибуток страхових організацій, включаючи філіали аналогічних організацій, розташованих на території України
A23: 11020900 | B23: Податок на прибуток організацій і підприємств споживчої кооперації, кооперативів та громадських об'єднань
A24: 11021000 | B24: Податок на прибуток приватних підприємств
A25: 11021100 | B25: Інші платники податку на прибуток
A26: 11021300 | B26: Реструктурована сума заборгованості податку на прибуток підприємств і організацій
A27: 11021400 | B27: Надходження від підприємств податку на прибуток, одержаного від виконання інноваційних проектів
A28: 11021500 | B28: Податок на прибуток, одержаний за рахунок знижувального коефіцієнта 0,8 до норм амортизації
A29: 11021600 | B29: Податок на прибуток фінансових установ, включаючи філіали аналогічних організацій, розташованих на території України, за винятком страхових організацій
A30: 11021900 | B30: Податкова заборгованість з податку на прибуток підприємств (крім підприємств комунальної власності), додаткові податкові зобов'язання з цього податку, розстрочені податкові зобов'язання НАК "Нафтогаз України" та її підприємств з податку на прибуток (у тому числі відсотки за користування податковим кредитом), що спрямовуються на розрахунки з погашення заборгованості з різниці в тарифах на теплову енергію, послуги з водопостачання та водовідведення, що вироблялися, транспортувалися та постачалися населенню, яка виникла у зв'язку з невідповідністю фактичної вартості теплової енергії, послуг з водопостачання та водовідведення тарифам, що затверджувалися або погоджувалися відповідними органами державної влади чи органами місцевого самоврядування
A31: 11022100 | B31: Податкова заборгованість з податку на прибуток підприємств (крім підприємств комунальної власності), додаткові податкові зобов'язання з цього податку, розстрочені податкові зобов'язання НАК "Нафтогаз України" та її підприємств з податку на прибуток (у тому числі відсотки за користування податковим кредитом), що спрямовуються на субвенцію з державного бюджету місцевим бюджетам на надання пільг та житлових субсидій населенню на оплату електроенергії, природного газу, послуг тепло-, водопостачання і водовідведення, квартирної плати, вивезення побутового сміття та рідких нечистот
A32: 11022200 | B32: Надходження від погашення податкового боргу, в тому числі реструктуризованого або розстроченого (відстроченого), з податку на прибуток підприємств, що сплачується підприємствами електроенергетичної, нафтогазової, вугільної галузей, підприємствами, що надають послуги з виробництва, транспортування та постачання теплової енергії, підприємствами централізованого водопостачання та водовідведення, та нараховані суми податку на прибуток таких підприємств, які виникають після проведення розрахунків по субвенції з державного бюджету місцевим бюджетам, визначеній пунктом 24 статті 14 Закону України "Про Державний бюджет України на 2014 рік"
A33: 11023100 | B33: Авансові внески з податку на прибуток підприємств і організацій, що перебувають у державній власності
A34: 11023200 | B34: Авансові внески з податку на прибуток підприємств та фінансових установ комунальної власності
A35: 11023300 | B35: Авансові внески з податку на прибуток підприємств, створених за участю іноземних інвесторів
A36: 11023400 | B36: Авансові внески з податку на прибуток від казино, відеосалонів, гральних автоматів, концертно-видовищних заходів
A37: 11023500 | B37: Авансові внески з податку на прибуток іноземних юридичних осіб
A38: 11023600 | B38: Авансові внески з податку на прибуток банківських організацій, включаючи філіали аналогічних організацій, розташованих на території України
A39: 11023700 | B39: Авансові внески з податку на прибуток страхових організацій, включаючи філіали аналогічних організацій, розташованих на території України
A40: 11023900 | B40: Авансові внески з податку на прибуток організацій і підприємств споживчої кооперації, кооперативів та громадських об'єднань
A41: 11024000 | B41: Авансові внески з податку на прибуток приватних підприємств
A42: 11024100 | B42: Авансові внески з податку на прибуток від інших платників податку на прибуток
A43: 11024600 | B43: Авансові внески з податку на прибуток фінансових установ, включаючи філіали аналогічних організацій, розташованих на території України, за винятком страхових організацій
A44: 11024700 | B44: Податок на дохід, який сплачують суб'єкти, що здійснюють діяльність з випуску та проведення державних лотерей
A45: 12000000 | B45: Податки на власність
A46: 12020000 | B46: Податок з власників транспортних засобів та інших самохідних машин і механізмів
A47: 12020100 | B47: Податок з власників наземних транспортних засобів та інших самохідних машин і механізмів (юридичних осіб)
A48: 12020200 | B48: Податок з власників наземних транспортних засобів та інших самохідних машин і механізмів (з громадян)
A49: 12020300 | B49: Надходження сум реструктурованої заборгованості зі сплати податку власниками транспортних засобів та інших самохідних машин і механізмів
A50: 12020400 | B50: Податок з власників водних транспортних засобів
A51: 12020500 | B51: Податок з власників наземних транспортних засобів та інших самохідних машин і механізмів (юридичних осіб), зареєстрованих у місті Києві
A52: 12020600 | B52: Податок з власників наземних транспортних засобів та інших самохідних машин і механізмів (з громадян), зареєстрованих у місті Києві
A53: 12020700 | B53: Надходження сум реструктурованої заборгованості зі сплати податку власниками транспортних засобів та інших самохідних машин і механізмів, зареєстрованих у місті Києві
A54: 12020800 | B54: Податок з власників водних транспортних засобів, зареєстрованих в місті Києві
A55: 13000000 | B55: Рентна плата та плата за використання інших природних ресурсів
A56: 13010000 | B56: Рентна плата за спеціальне використання лісових ресурсів
A57: 13010100 | B57: Рентна плата за спеціальне використання лісових ресурсів в частині деревини, заготовленої в порядку рубок головного користування
A58: 13010200 | B58: Рентна плата за спеціальне використання лісових ресурсів (крім рентної плати за спеціальне використання лісових ресурсів в частині деревини, заготовленої в порядку рубок головного користування)
A59: 13010300 | B59: Надходження сум реструктурованої заборгованості рентної плати за спеціальне використання лісових ресурсів
A60: 13020000 | B60: Рентна плата за спеціальне використання води
A61: 13020100 | B61: Рентна плата за спеціальне використання води (крім рентної плати за спеціальне використання води водних об'єктів місцевого значення)
A62: 13020200 | B62: Рентна плата за спеціальне використання води водних об'єктів місцевого значення
A63: 13020300 | B63: Рентна плата за спеціальне використання води для потреб гідроенергетики
A64: 13020400 | B64: Надходження рентної плати за спеціальне використання води від підприємств житлово-комунального господарства
A65: 13020500 | B65: Надходження сум реструктурованої заборгованості зі сплати рентної плати за спеціальне використання води
A66: 13020600 | B66: Рентна плата за спеціальне використання води в частині використання поверхневих вод для потреб водного транспорту (крім стоянкових і службово-допоміжного флотів)
A67: 13030000 | B67: Рентна плата за користування надрами
A68: 13030100 | B68: Рентна плата за користування надрами для видобування корисних копалин загальнодержавного значення
A69: 13030200 | B69: Рентна плата за користування надрами для видобування корисних копалин місцевого значення
A70: 13030400 | B70: Рентна плата за користування надрами континентального шельфу і в межах виключної (морської) економічної зони
A71: 13030500 | B71: Надходження сум реструктурованої заборгованості зі сплати рентної плати за користування надрами
A72: 13030600 | B72: Рентна плата за користування надрами в цілях, не пов'язаних з видобуванням корисних копалин
A73: 13030700 | B73: Рентна плата за користування надрами для видобування нафти
A74: 13030800 | B74: Рентна плата за користування надрами для видобування природного газу
A75: 13030900 | B75: Рентна плата за користування надрами для видобування газового конденсату
A76: 13060000 | B76: Рентна плата за користування радіочастотним ресурсом України
A77: 13070000 | B77: Плата за використання інших природних ресурсів
A78: 13070100 | B78: Плата за спеціальне використання диких тварин
A79: 13070200 | B79: Плата за спеціальне використання рибних та інших водних ресурсів
A80: 13070300 | B80: Надходження сум реструктурованої заборгованості зі сплати платежів за використання інших природних ресурсів
A81: 14000000 | B81: Внутрішні податки на товари та послуги
A82: 14010000 | B82: Податок на додану вартість
A83: 14010100 | B83: Податок на додану вартість з вироблених в Україні товарів (робіт, послуг)
A84: 14010200 | B84: Бюджетне відшкодування податку на додану вартість грошовими коштами
A85: 14010300 | B85: Податок на додану вартість з ввезених на територію України товарів
A86: 14010400 | B86: Реструктурована сума заборгованості податку на додану вартість
A87: 14010500 | B87: Податок на додану вартість із імпортованих на територію України робіт, послуг
A88: 14010600 | B88: Надходження від підприємств податку на додану вартість по операціях, пов'язаних з виконанням інноваційних проектів
A89: 14010700 | B89: Податок на додану вартість, що сплачується юридичними особами при здійсненні ними операцій з постачання власної виробленої продукції (молока, молочної сировини, молочних продуктів, м'яса, м'ясопродуктів, іншої продукції переробки тварин (шкур, субпродуктів, м'ясо-кісткового борошна), виготовленої з поставлених молока або м'яса в живій вазі сільськогосподарськими підприємствами, іншими юридичними і фізичними особами, у тому числі фізичними особами - підприємцями, які самостійно вирощують, розводять, відгодовують продукцію тваринництва
A90: 14010900 | B90: Податкова заборгованість з податку на додану вартість підприємств, додаткові податкові зобов'язання з цього податку, розстрочені податкові зобов'язання НАК "Нафтогаз України" та її підприємств з податку на додану вартість (у тому числі відсотки за користування податковим кредитом), що спрямовуються на розрахунки з погашення заборгованості з різниці в тарифах на теплову енергію, послуги з водопостачання та водовідведення, що вироблялися, транспортувалися та постачалися населенню, яка виникла у зв'язку з невідповідністю фактичної вартості теплової енергії, послуг з водопостачання та водовідведення тарифам, що затверджувалися або погоджувалися відповідними органами державної влади чи органами місцевого самоврядування
A91: 14011100 | B91: Податкова заборгованість з податку на додану вартість підприємств, додаткові податкові зобов'язання з цього податку, розстрочені податкові зобов'язання НАК "Нафтогаз України" та її підприємств з податку на додану вартість (у тому числі відсотки за користування податковим кредитом), що спрямовуються на субвенцію з державного бюджету місцевим бюджетам на надання пільг та житлових субсидій населенню на оплату електроенергії, природного газу, послуг тепло-, водопостачання і водовідведення, квартирної плати, вивезення побутового сміття та рідких нечистот
A92: 14020000 | B92: Акцизний податок з вироблених в Україні підакцизних товарів (продукції)
A93: 14020100 | B93: Спирт
A94: 14020200 | B94: Лікеро-горілчана продукція
A95: 14020300 | B95: Виноробна продукція (за звітний місяць)
A96: 14020400 | B96: Пиво
A97: 14020600 | B97: Тютюн та тютюнові вироби (за ставкою у твердих сумах з одиниці реалізованого товару (продукції)
A98: 14020700 | B98: Тютюн та тютюнові вироби за ставкою у процентах до обороту з реалізації товару (продукції)
A99: 14020800 | B99: Транспортні засоби (крім мотоциклів і велосипедів)
A100: 14020900 | B100: Мотоцикли і велосипеди
A101: 14021000 | B101: Кузови для моторних транспортних засобів
A102: 14021100 | B102: Скраплений газ
A103: 14021200 | B103: Операції з відчуження цінних паперів та операції з деривативами, що справлялись до 1 січня 2015 року
A104: 14021300 | B104: Електрична енергія
A105: 14021600 | B105: Інші підакцизні товари вітчизняного виробництва
A106: 14021700 | B106: Бензин моторний для автомобілів
A107: 14021800 | B107: Інші нафтопродукти
A108: 14022100 | B108: Надходження сум реструктурованої заборгованості зі сплати акцизного податку з вироблених в Україні підакцизних товарів (продукції)
A109: 14022300 | B109: Виноробна продукція (при придбанні акцизних марок)
A110: 14030000 | B110: Акцизний податок з ввезених на митну територію України підакцизних товарів (продукції)
A111: 14030100 | B111: Спирт
A112: 14030200 | B112: Лікеро-горілчана продукція
A113: 14030300 | B113: Виноробна продукція
A114: 14030400 | B114: Пиво
A115: 14030600 | B115: Тютюн та тютюнові вироби (за ставкою у твердих сумах з одиниці реалізованого товару (продукції)
A116: 14030700 | B116: Тютюн та тютюнові вироби за ставкою у процентах до обороту з реалізації товару (продукції)
A117: 14030800 | B117: Транспортні засоби (крім мотоциклів і велосипедів)
A118: 14030900 | B118: Мотоцикли і велосипеди
A119: 14031000 | B119: Кузови для моторних транспортних засобів
A120: 14031100 | B120: Скраплений газ
A121: 14031600 | B121: Інші підакцизні товари іноземного виробництва
A122: 14031700 | B122: Бензин моторний для автомобілів
A123: 14031800 | B123: Інші нафтопродукти
A124: 14040000 | B124: Акцизний податок з реалізації суб'єктами господарювання роздрібної торгівлі підакцизних товарів
A125: 14050000 | B125: Податки на окремі категорії послуг
A126: 15000000 | B126: Податки на міжнародну торгівлю та зовнішні операції
A127: 15010000 | B127: Ввізне мито
A128: 15010100 | B128: Мито на товари, що ввозяться суб'єктами підприємницької діяльності
A129: 15010200 | B129: Мито на товари, які ввозяться (пересилаються) громадянами
A130: 15010300 | B130: Інші збори з імпорту
A131: 15010800 | B131: Спеціальне мито
A132: 15010900 | B132: Антидемпінгове мито
A133: 15011000 | B133: Компенсаційне мито
A134: 15011100 | B134: Додатковий імпортний збір
A135: 15020000 | B135: Вивізне мито
A136: 15020100 | B136: Мито на товари, що вивозяться суб'єктами підприємницької діяльності
A137: 15020200 | B137: Мито на товари, які вивозяться (пересилаються) громадянами
A138: 15020300 | B138: Надходження від реалізації валютних коштів, одержаних у результаті проведення операцій за державним контрактом
A139: 16000000 | B139: Окремі податки і збори, що зараховуються до місцевих бюджетів
A140: 16010000 | B140: Місцеві податки і збори, нараховані до 1 січня 2011 року
A141: 16010100 | B141: Податок з реклами
A142: 16010200 | B142: Комунальний податок
A143: 16010400 | B143: Збір за припаркування автотранспорту
A144: 16010500 | B144: Ринковий збір
A145: 16010600 | B145: Збір за видачу ордера на квартиру
A146: 16010700 | B146: Курортний збір
A147: 16010800 | B147: Збір за участь у бігах на іподромі
A148: 16010900 | B148: Збір за виграш у бігах на іподромі
A149: 16011000 | B149: Збір з осіб, які беруть участь у грі на тоталізаторі на іподромі
A150: 16011100 | B150: Збір за право використання місцевої символіки
A151: 16011200 | B151: Збір за право проведення кіно- і телезйомок
A152: 16011300 | B152: Збір за право проведення місцевих аукціонів, конкурсного розпродажу і лотерей
A153: 16011500 | B153: Збір за видачу дозволу на розміщення об'єктів торгівлі та сфери послуг
A154: 16011600 | B154: Збір із власників собак
A155: 16011700 | B155: Надходження сум реструктурованої заборгованості зі сплати місцевих податків
A156: 16011800 | B156: Збір на розвиток рекреаційного комплексу в Автономній Республіці Крим
A157: 16011900 | B157: Збір на розвиток пасажирського електротранспорту в Автономній Республіці Крим
A158: 16012100 | B158: Податок на промисел
A159: 17000000 | B159: Рентна плата за транспортування, збори на паливно-енергетичні ресурси
A160: 17010000 | B160: Рентна плата за вуглеводні, що нарахована до 1 січня 2013 року та рентна плата за транспортування
A161: 17010100 | B161: Рентна плата за нафту, що видобувається в Україні, нарахована до 1 січня 2013 року
A162: 17010200 | B162: Рентна плата за природний газ, що видобувається в Україні, нарахована до 1 січня 2013 року
A163: 17010300 | B163: Рентна плата за газовий конденсат, що видобувається в Україні, нарахована до 1 січня 2013 року
A164: 17010400 | B164: Надходження сум реструктурованої заборгованості зі сплати рентної плати за нафту, що видобувається в Україні, що нарахована до 1 січня 2013 року
A165: 17010500 | B165: Надходження сум реструктурованої заборгованості зі сплати рентної плати за природний газ, що видобувається в Україні, що нарахована до 1 січня 2013 року
A166: 17010700 | B166: Рентна плата за транзитне транспортування трубопроводами природного газу територією України
A167: 17010800 | B167: Рентна плата за транспортування нафти та нафтопродуктів магістральними нафтопроводами та нафтопродуктопроводами територією України
A168: 17010900 | B168: Рентна плата за транзитне транспортування трубопроводами аміаку територією України
A169: 17011200 | B169: Податкова заборгованість з рентної плати за транзитне транспортування трубопроводами природного газу територією України, розстрочені податкові зобов'язання НАК "Нафтогаз України" та її підприємств з цього податку (у тому числі відсотки за користування податковим кредитом), що спрямовуються на розрахунки з погашення заборгованості з різниці в тарифах на теплову енергію, послуги з водопостачання та водовідведення, що вироблялися, транспортувалися та постачалися населенню, яка виникла у зв'язку з невідповідністю фактичної вартості теплової енергії, послуг з водопостачання та водовідведення тарифам, що затверджувалися або погоджувалися відповідними органами державної влади чи органами місцевого самоврядування
A170: 17011500 | B170: Податкова заборгованість з рентної плати за транзитне транспортування трубопроводами природного газу територією України, розстрочені податкові зобов'язання НАК "Нафтогаз України" та її підприємств з цього податку (у тому числі відсотки за користування податковим кредитом), що спрямовуються на субвенцію з державного бюджету місцевим бюджетам на надання пільг та житлових субсидій населенню на оплату електроенергії, природного газу, послуг тепло-, водопостачання і водовідведення, квартирної плати, вивезення побутового сміття та рідких нечистот
A171: 17060000 | B171: Збір у вигляді цільової надбавки до діючого тарифу на природний газ для споживачів усіх форм власності
A172: 17060100 | B172: Збір у вигляді цільової надбавки до діючого тарифу на природний газ для споживачів усіх форм власності, який справляється за поставлений природний газ споживачам на підставі укладених з ними договорів
A173: 17060200 | B173: Збір у вигляді цільової надбавки до діючого тарифу на природний газ для споживачів усіх форм власності, який справляється за імпортований суб'єктами господарювання природний газ для споживання ними як палива або сировини
A174: 17060300 | B174: Збір у вигляді цільової надбавки до діючого тарифу на природний газ для споживачів усіх форм власності, який справляється за видобутий суб'єктами господарювання та спожитий ними природний газ як паливо або сировина
A175: 17070000 | B175: Надходження нарахованих і не сплачених зобов'язань Державного підприємства "Енергоринок" перед державним бюджетом по збору у вигляді цільової надбавки до діючого тарифу на електричну та теплову енергію за минулі роки
A176: 18000000 | B176: Місцеві податки
A177: 18010000 | B177: Податок на майно
A178: 18010100 | B178: Податок на нерухоме майно, відмінне від земельної ділянки, сплачений юридичними особами, які є власниками об'єктів житлової нерухомості
A179: 18010200 | B179: Податок на нерухоме майно, відмінне від земельної ділянки, сплачений фізичними особами, які є власниками об'єктів житлової нерухомості
A180: 18010300 | B180: Податок на нерухоме майно, відмінне від земельної ділянки, сплачений фізичними особами, які є власниками об'єктів нежитлової нерухомості
A181: 18010400 | B181: Податок на нерухоме майно, відмінне від земельної ділянки, сплачений юридичними особами, які є власниками об'єктів нежитлової нерухомості
A182: 18010500 | B182: Земельний податок з юридичних осіб
A183: 18010600 | B183: Орендна плата з юридичних осіб
A184: 18010700 | B184: Земельний податок з фізичних осіб
A185: 18010800 | B185: Реструктурована сума заборгованості з плати за землю
A186: 18010900 | B186: Орендна плата з фізичних осіб
A187: 18011000 | B187: Транспортний податок з фізичних осіб
A188: 18011100 | B188: Транспортний податок з юридичних осіб
A189: 18020000 | B189: Збір за місця для паркування транспортних засобів
A190: 18020100 | B190: Збір за місця для паркування транспортних засобів, сплачений юридичними особами
A191: 18020200 | B191: Збір за місця для паркування транспортних засобів, сплачений фізичними особами
A192: 18030000 | B192: Туристичний збір
A193: 18030100 | B193: Туристичний збір, сплачений юридичними особами
A194: 18030200 | B194: Туристичний збір, сплачений фізичними особами
A195: 18040000 | B195: Збір за провадження деяких видів підприємницької діяльності, що справлявся до 1 січня 2015 року
A196: 18040100 | B196: Збір за провадження торговельної діяльності (роздрібна торгівля), сплачений фізичними особами, що справлявся до 1 січня 2015 року
A197: 18040200 | B197: Збір за провадження торговельної діяльності (роздрібна торгівля), сплачений юридичними особами, що справлявся до 1 січня 2015 року
A198: 18040300 | B198: Збір за здійснення торгівлі валютними цінностями, що справлявся до 1 січня 2015 року
A199: 18040500 | B199: Збір за провадження торговельної діяльності (оптова торгівля), сплачений фізичними особами, що справлявся до 1 січня 2015 року
A200: 18040600 | B200: Збір за провадження торговельної діяльності (ресторанне господарство), сплачений фізичними особами, що справлявся до 1 січня 2015 року
... 287 more rows

Sheet ДовФінансування (hidden)
A1: 200000 | B1: Внутрішнє фінансування
A2: 201000 | B2: Фінансування за рахунок коштів державних фондів
A3: 201100 | B3: Позики, одержані з державних фондів
A4: 201110 | B4: Одержано позик
A5: 201120 | B5: Погашено позик
A6: 202000 | B6: Фінансування за рахунок позик банківських установ
A7: 202100 | B7: Фінансування за рахунок позик Національного банку України
A8: 202110 | B8: Одержано позик
A9: 202120 | B9: Погашено позик
A10: 202200 | B10: Фінансування за рахунок інших банків
A11: 202210 | B11: Одержано позик
A12: 202220 | B12: Погашено позик
A13: 203000 | B13: Інше внутрішнє фінансування
A14: 203100 | B14: Позики інших фінансових установ
A15: 203110 | B15: Одержано позик
A16: 203120 | B16: Погашено позик
A17: 203130 | B17: Позицію виключено
A18: 203200 | B18: Позики нефінансових державних підприємств
A19: 203210 | B19: Одержано позик
A20: 203220 | B20: Погашено позик
A21: 203230 | B21: Позицію виключено
A22: 203300 | B22: Позики нефінансового приватного сектора
A23: 203310 | B23: Одержано позик
A24: 203320 | B24: Погашено позик
A25: 203400 | B25: Фінансування за рахунок коштів єдиного казначейського рахунку
A26: 203410 | B26: Одержано
A27: 203420 | B27: Повернено
A28: 203500 | B28: Фінансування за рахунок випуску цінних паперів
A29: 203510 | B29: Одержано позик
A30: 203520 | B30: Погашено позик
A31: 203600 | B31: Інше внутрішнє фінансування
A32: 203610 | B32: Одержано позик
A33: 203620 | B33: Погашено позик
A34: 204000 | B34: Надходження від приватизації державного майна
A35: 205000 | B35: Фінансування за рахунок залишків коштів на рахунках бюджетних установ
A36: 205100 | B36: На початок періоду
A37: 205200 | B37: На кінець періоду
A38: 205300 | B38: Інші розрахунки
A39: 205310 | B39: Курсова різниця
A40: 205320 | B40: Передача коштів із спеціального до загального фонду бюджету
A41: 205330 | B41: Передача коштів із загального до спеціального фонду бюджету
A42: 205340 | B42: Інші розрахунки
A43: 206000 | B43: Зміни обсягів депозитів і цінних паперів, що використовуються для управління ліквідністю
A44: 206100 | B44: Повернення бюджетних коштів з депозитів, надходження внаслідок продажу/пред'явлення цінних паперів
A45: 206110 | B45: Повернення бюджетних коштів з депозитів
A46: 206120 | B46: Надходження внаслідок продажу/пред'явлення цінних паперів
A47: 206200 | B47: Розміщення бюджетних коштів на депозитах або придбання цінних паперів
A48: 206210 | B48: Розміщення бюджетних коштів на депозитах
A49: 206220 | B49: Придбання цінних паперів
A50: 207000 | B50: Позицію виключено
A51: 207100 | B51: Позицію виключено
A52: 207200 | B52: Позицію виключено
A53: 207300 | B53: Позицію виключено
A54: 208000 | B54: Фінансування за рахунок зміни залишків коштів бюджетів
A55: 208100 | B55: На початок періоду
A56: 208200 | B56: На кінець періоду
A57: 208300 | B57: Інші розрахунки
A58: 208310 | B58: Курсова різниця
A59: 208320 | B59: Передача коштів із спеціального до загального фонду бюджету
A60: 208330 | B60: Передача коштів із загального до спеціального фонду бюджету
A61: 208340 | B61: Інші розрахунки
A62: 208400 | B62: Кошти, що передаються із загального фонду бюджету до бюджету розвитку (спеціального фонду)
A63: 209000 | B63: Зміни обсягів товарно-матеріальних цінностей
A64: 209100 | B64: На початок періоду
A65: 209200 | B65: На кінець періоду
A66: 300000 | B66: Зовнішнє фінансування
A67: 301000 | B67: Позики, надані міжнародними фінансовими організаціями
A68: 301100 | B68: Одержано позик
A69: 301200 | B69: Погашено позик
A70: 302000 | B70: Позики, надані органами управління іноземних держав
A71: 302100 | B71: Одержано позик
A72: 302200 | B72: Погашено позик
A73: 303000 | B73: Позики, надані іноземними комерційними банками, іншими іноземними фінансовими установами
A74: 303100 | B74: Одержано позик
A75: 303200 | B75: Погашено позик
A76: 304000 | B76: Фінансування за рахунок випуску цінних паперів
A77: 304100 | B77: Одержано позик
A78: 304200 | B78: Погашено позик
A79: 305000 | B79: Інше зовнішнє фінансування
A80: 305100 | B80: Одержано позик
A81: 305200 | B81: Погашено позик
A82: 306000 | B82: Зміни обсягів депозитів і цінних паперів, що використовуються для управління ліквідністю
A83: 306100 | B83: Повернення бюджетних коштів з депозитів, надходження внаслідок продажу/пред'явлення цінних паперів
A84: 306200 | B84: Розміщення бюджетних коштів на депозитах або придбання цінних паперів
A85: 307000 | B85: Позицію виключено
A86: 307100 | B86: Позицію виключено
A87: 307200 | B87: Позицію виключено
A88: 400000 | B88: Фінансування за борговими операціями
A89: 401000 | B89: Запозичення
A90: 401100 | B90: Внутрішні запозичення
A91: 401101 | B91: Довгострокові зобов'язання
A92: 401102 | B92: Середньострокові зобов'язання
A93: 401103 | B93: Короткострокові зобов'язання та векселі
A94: 401104 | B94: Інші зобов'язання
A95: 401200 | B95: Зовнішні запозичення
A96: 401201 | B96: Довгострокові зобов'язання
A97: 401202 | B97: Середньострокові зобов'язання
A98: 401203 | B98: Короткострокові зобов'язання та векселі
A99: 401204 | B99: Інші зобов'язання
A100: 402000 | B100: Погашення
A101: 402100 | B101: Внутрішні зобов'язання
A102: 402101 | B102: Довгострокові зобов'язання
A103: 402102 | B103: Середньострокові зобов'язання
A104: 402103 | B104: Короткострокові зобов'язання та векселі
A105: 402104 | B105: Інші зобов'язання
A106: 402200 | B106: Зовнішні зобов'язання
A107: 402201 | B107: Довгострокові зобов'язання
A108: 402202 | B108: Середньострокові зобов'язання
A109: 402203 | B109: Короткострокові зобов'язання та векселі
A110: 402204 | B110: Інші зобов'язання
A111: 500000 | B111: Надходження від приватизації державного майна
A112: 501000 | B112: Надходження від приватизації державного майна (крім об'єктів, для яких передбачено окремий розподіл коштів відповідно до Державної програми приватизації на 2000 - 2002 роки) та інших надходжень, безпосередньо пов'язаних з процесом приватизації та кредитування підприємств
A113: 502000 | B113: Надходження від приватизації об'єктів незавершеного будівництва, що споруджувались відповідно до Чорнобильської будівельної програми
A114: 504000 | B114: Надходження від приватизації підприємств, що належать до сфери управління Міністерства оборони України
A115: 505000 | B115: Понадпланові надходження від приватизації державного майна з урахуванням можливого заміщення інших джерел фінансування державного бюджету
A116: 600000 | B116: Фінансування за активними операціями
A117: 601000 | B117: Зміни обсягів депозитів і цінних паперів, що використовуються для управління ліквідністю
A118: 601100 | B118: Повернення бюджетних коштів з депозитів, надходження внаслідок продажу/пред'явлення цінних паперів
A119: 601110 | B119: Повернення бюджетних коштів з депозитів
A120: 601120 | B120: Надходження внаслідок продажу/пред'явлення цінних паперів
A121: 601200 | B121: Розміщення бюджетних коштів на депозитах або придбання цінних паперів
A122: 601210 | B122: Розміщення бюджетних коштів на депозитах
A123: 601220 | B123: Придбання цінних паперів
A124: 602000 | B124: Зміни обсягів бюджетних коштів
A125: 602100 | B125: На початок періоду
A126: 602200 | B126: На кінець періоду
A127: 602300 | B127: Інші розрахунки
A128: 602301 | B128: Курсова різниця
A129: 602302 | B129: Передача коштів із спеціального до загального фонду бюджету
A130: 602303 | B130: Передача коштів із загального до спеціального фонду бюджету
A131: 602304 | B131: Інші розрахунки
A132: 602400 | B132: Кошти, що передаються із загального фонду бюджету до бюджету розвитку (спеціального фонду)
A133: 603000 | B133: Фінансування за рахунок коштів єдиного казначейського рахунку
A134: 604000 | B134: Зміни обсягів товарно-матеріальних цінностей
A135: 604100 | B135: На початок періоду
A136: 604200 | B136: На кінець періоду

Sheet ДовКЕКВ (hidden)
A1: 2000 | B1: Поточні видатки
A2: 2100 | B2: Оплата праці і нарахування на заробітну плату
A3: 2110 | B3: Оплата праці
A4: 2111 | B4: Заробітна плата
A5: 2112 | B5: Грошове забезпечення військовослужбовців
A6: 2113 | B6: Суддівська винагорода
A7: 2120 | B7: Нарахування на оплату праці
A8: 2200 | B8: Використання товарів і послуг
A9: 2210 | B9: Предмети, матеріали, обладнання та інвентар
A10: 2220 | B10: Медикаменти та перев'язувальні матеріали
A11: 2230 | B11: Продукти харчування
A12: 2240 | B12: Оплата послуг (крім комунальних)
A13: 2250 | B13: Видатки на відрядження
A14: 2260 | B14: Видатки та заходи спеціального призначення
A15: 2270 | B15: Оплата комунальних послуг та енергоносіїв
A16: 2271 | B16: Оплата теплопостачання
A17: 2272 | B17: Оплата водопостачання та водовідведення
A18: 2273 | B18: Оплата електроенергії
A19: 2274 | B19: Оплата природного газу
A20: 2275 | B20: Оплата інших енергоносіїв та інших комунальних послуг
A21: 2276 | B21: Оплата енергосервісу
A22: 2280 | B22: Дослідження і розробки, окремі заходи по реалізації державних (регіональних) програм
A23: 2281 | B23: Дослідження і розробки, окремі заходи розвитку по реалізації державних (регіональних) програм
A24: 2282 | B24: Окремі заходи по реалізації державних (регіональних) програм, не віднесені до заходів розвитку
A25: 2400 | B25: Обслуговування боргових зобов'язань
A26: 2410 | B26: Обслуговування внутрішніх боргових зобов'язань
A27: 2420 | B27: Обслуговування зовнішніх боргових зобов'язань
A28: 2600 | B28: Поточні трансферти
A29: 2610 | B29: Субсидії та поточні трансферти підприємствам (установам, організаціям)
A30: 2620 | B30: Поточні трансферти органам державного управління інших рівнів
A31: 2630 | B31: Поточні трансферти урядам іноземних держав та міжнародним організаціям
A32: 2700 | B32: Соціальне забезпечення
A33: 2710 | B33: Виплата пенсій і допомоги
A34: 2720 | B34: Стипендії
A35: 2730 | B35: Інші виплати населенню
A36: 2800 | B36: Інші поточні видатки
A37: 2900 | B37: Позицію виключено
A38: 3000 | B38: Капітальні видатки
A39: 3100 | B39: Придбання основного капіталу
A40: 3110 | B40: Придбання обладнання і предметів довгострокового користування
A41: 3120 | B41: Капітальне будівництво (придбання)
A42: 3121 | B42: Капітальне будівництво (придбання) житла
A43: 3122 | B43: Капітальне будівництво (придбання) інших об'єктів
A44: 3130 | B44: Капітальний ремонт
A45: 3131 | B45: Капітальний ремонт житлового фонду (приміщень)
A46: 3132 | B46: Капітальний ремонт інших об'єктів
A47: 3140 | B47: Реконструкція та реставрація
A48: 3141 | B48: Реконструкція житлового фонду (приміщень)
A49: 3142 | B49: Реконструкція та реставрація інших об'єктів
A50: 3143 | B50: Реставрація пам'яток культури, історії та архітектури
A51: 3150 | B51: Створення державних запасів і резервів
A52: 3160 | B52: Придбання землі та нематеріальних активів
A53: 3200 | B53: Капітальні трансферти
A54: 3210 | B54: Капітальні трансферти підприємствам (установам, організаціям)
A55: 3220 | B55: Капітальні трансферти органам державного управління інших рівнів
A56: 3230 | B56: Капітальні трансферти урядам іноземних держав та міжнародним організаціям
A57: 3240 | B57: Капітальні трансферти населенню
A58: 9000 | B58: Нерозподілені видатки

Sheet ДовКреди (hidden)
A1: 4000 | B1: Кредитування
A2: 4100 | B2: Внутрішнє кредитування
A3: 4110 | B3: Надання внутрішніх кредитів
A4: 4111 | B4: Надання кредитів органам державного управління інших рівнів
A5: 4112 | B5: Надання кредитів підприємствам, установам, організаціям
A6: 4113 | B6: Надання інших внутрішніх кредитів
A7: 4120 | B7: Повернення внутрішніх кредитів
A8: 4121 | B8: Повернення кредитів органами державного управління інших рівнів
A9: 4122 | B9: Повернення кредитів підприємствами, установами, організаціями
A10: 4123 | B10: Повернення інших внутрішніх кредитів
A11: 4200 | B11: Зовнішнє кредитування
A12: 4210 | B12: Надання зовнішніх кредитів
A13: 4220 | B13: Повернення зовнішніх кредитів
